Workbook

Sheet Read Me

Sheet Control
G3: Time Series of Global Supply and Demand | N3: Time Series of Price, Marginal Cost, and | V3: Supply and Demand Schedules
G4: for Good #2 | N4: Marginal Values for Good #2 in Economy 1 | V4: for Good #2 in Economy 1
A26: SIMLEN: | B26: 30
A27: DT: | B27: 0.01 | BC27: *
A28: PER: | B28: =B26/30 -> 1
A29: TIME: | B29: 30.00059128
G47: Time Series of Interest Rates | N47: Time Series of Household Utility | V47: Time Series of International
G48: and Currency Values | N48: and Leisure | V48: Trade and Financial Balances

Sheet Econ 0
G5: < Absolute Commodity Values > | V5: < Export / Import Resolution >
U7: S
G8: 2 | H8: ='Econ 2'!AH14 -> -1658346.268 | I8: ='Econ 2'!AI14 -> 1274.924627 | J8: ='Econ 2'!AJ14 -> 10531.43283 | K8: ='Econ 2'!AK14 -> 55308.77673 | L8: 2 | M8: __ | T8: 2 | U8: ='Econ 2'!U45+'Econ 2'!U14 -> -102042.6901 | V8: ='Econ 2'!V45+'Econ 2'!V14 -> 100.2381209 | W8: ='Econ 2'!W45+'Econ 2'!W14 -> 741.4802365 | X8: ='Econ 2'!X45+'Econ 2'!Z22+'Econ 2'!X14 -> 1942.079527 | Y8: 2
G9: 1 | H9: ='Econ 1'!AH14 -> -1658346.268 | I9: ='Econ 1'!AI14 -> 1274.924627 | J9: ='Econ 1'!AJ14 -> 10531.43283 | K9: ='Econ 1'!AK14 -> 55308.77673 | L9: 1 | M9: U | T9: 1 | U9: ='Econ 1'!U45+'Econ 1'!U14 -> -107134.9622 | V9: ='Econ 1'!V45+'Econ 1'!V14 -> 100.331862 | W9: ='Econ 1'!W45+'Econ 1'!W14 -> 825.6115531 | X9: ='Econ 1'!X45+'Econ 1'!Z22+'Econ 1'!X14 -> 2002.763469 | Y9: 1 | Z9: Global
G10: 0 | H10: =H9+H8 -> -3316692.537 | I10: =I9+I8 -> 2549.849253 | J10: =J9+J8 -> 21062.86567 | K10: =K9+K8 -> 110617.5535 | L10: 0 | T10: 0 | U10: =-2*GPE!E10 -> -209177.6522 | V10: =V9+V8 -> 200.5699829 | W10: =W9+W8 -> 1567.09179 | X10: =X9+X8 -> 3944.842996 | Y10: 0 | Z10: Supply
H11: 0 | I11: 1 | J11: 2 | K11: L | U11: 0 | V11: 1 | W11: 2 | X11: L
U12: D
G13: 2 | H13: ='Econ 2'!U41 -> -1761351.503 | I13: ='Econ 2'!V41 -> 598473.7927 | J13: ='Econ 2'!W41 -> 598473.7927 | K13: ='Econ 2'!X41 -> 564403.9175 | L13: 2 | M13: __ | T13: 2 | U13: ='Econ 2'!U70 -> -102918.0277 | V13: ='Econ 2'!V70 -> 99.02802643 | W13: ='Econ 2'!W70 -> 773.2038113 | X13: ='Econ 2'!X70 -> 1911.414606 | Y13: 2
G14: 1 | H14: ='Econ 1'!U41 -> -1764570.49 | I14: ='Econ 1'!V41 -> 599521.8814 | J14: ='Econ 1'!W41 -> 599521.8814 | K14: ='Econ 1'!X41 -> 565526.7274 | L14: 1 | M14: Q | T14: 1 | U14: ='Econ 1'!U70 -> -106487.0976 | V14: ='Econ 1'!V70 -> 101.7053511 | W14: ='Econ 1'!W70 -> 795.2323594 | X14: ='Econ 1'!X70 -> 2036.807701 | Y14: 1 | Z14: Global
G15: 0 | H15: =H14+H13 -> -3525921.993 | I15: =I14+I13 -> 1197995.674 | J15: =J14+J13 -> 1197995.674 | K15: =K14+K13 -> 1129930.645 | L15: 0 | T15: 0 | U15: =U14+U13 -> -209405.1253 | V15: =V14+V13 -> 200.7333775 | W15: =W14+W13 -> 1568.436171 | X15: =X14+X13 -> 3948.222306 | Y15: 0 | Z15: Demand
H16: 0 | I16: 1 | J16: 2 | K16: L | U16: 0 | V16: 1 | W16: 2 | X16: L
D18: i | F18: n | H18: =1 -> 1 | I18: =GPE!F18/GPE!$E18 -> 441.9334589 | J18: =GPE!G18/GPE!$E18 -> 53.8606403 | K18: =GPE!H18/GPE!$E18 -> 10
D19: =-D27 -> -0.1022324716 | F19: =(1-1/H41)/Term -> -0.1367051189 | G19: Y | H19: =H15/(H10+U10) -> 1.000014693 | I19: =I15/(I10+V10) -> 435.5683884 | J19: =J15/(J10+W10) -> 52.93848547 | K19: =K15/(K10+X10) -> 9.863015088 | M19: Y | T19: S | U19: 1 | V19: =IF(V21>1,1/V21,1) -> 1 | W19: =IF(W21>1,1/W21,1) -> 1 | X19: =IF(X21>1,1/X21,1) -> 1 | Y19: S | Z19: Global
D20: -0.1 | F20: -0.1355310143 | H20: 0 | I20: 1 | J20: 2 | K20: L | T20: D | U20: =U21 -> 0.9989137175 | V20: =IF(V21<1,V21,1) -> 0.9991860121 | W20: =IF(W21<1,W21,1) -> 0.9991428526 | X20: =IF(X21<1,X21,1) -> 0.9991440932 | Y20: D | Z20: Factors
U21: =IF(U15<>0,U10/U15,1) -> 0.9989137175 | V21: =IF(V15<>0,V10/V15,1) -> 0.9991860121 | W21: 0.9991428526 | X21: 0.9991440932 | Y21: S / D
G22: < Global Financial Parameters > | U22: 0 | V22: 1 | W22: 2 | X22: L
F25: Global | G25: 2 | H25: =-I25-J25 -> -82913.39752 | I25: =I$19*V8 -> 43660.55679 | J25: =J$19*W8 -> 39252.84073 | L25: 2 | T25: 2 | U25: =U$19*U8 -> -102042.6901 | V25: 100.2381209 | W25: 741.4802365 | X25: 1942.079527 | Y25: 2 | Z25: Global
D26: - i | F26: Interest | G26: 1 | H26: =-I26-J26 -> -87408.01266 | I26: =I$19*V9 -> 43701.38744 | J26: =J$19*W9 -> 43706.62521 | L26: 1 | M26: YS | T26: 1 | U26: -107134.9622 | V26: 100.331862 | W26: 825.6115531 | X26: 2002.763469 | Y26: 1 | Z26: Supply
D27: =-H27/H32-V0 -> 0.1022324716 | F27: < Rate | G27: 0 | H27: =H26+H25 -> -170321.4102 | I27: =I26+I25 -> 87361.94423 | J27: =J26+J25 -> 82959.46594 | L27: 0 | T27: 0 | U27: =U26+U25 -> -209177.6522 | V27: =V26+V25 -> 200.5699829 | W27: =W26+W25 -> 1567.09179 | X27: =X26+X25 -> 3944.842996 | Y27: 0 | Z27: Absorbed
D28: 0.1 | H28: 0 | I28: 1 | J28: 2 | K28: L | U28: 0 | V28: 1 | W28: 2 | X28: L
D30: Global | G30: 2 | H30: =-I30-J30 -> 75407.50776 | I30: ='Econ 2'!I20 -> -39692.07864 | J30: ='Econ 2'!I21 -> -35715.42912 | L30: 2 | T30: 2 | U30: =U$20*U13 -> -102806.2297 | V30: 98.94741881 | W30: 772.5410617 | X30: 1909.778613 | Y30: 2 | Z30: Global
D31: Investment | F31: T | G31: 1 | H31: =-I31-J31 -> 79116.52829 | I31: ='Econ 1'!I20 -> -39724.20046 | J31: ='Econ 1'!I21 -> -39392.32783 | L31: 1 | M31: a | T31: 1 | U31: -106371.4226 | V31: 101.6225641 | W31: 794.550728 | X31: 2035.064383 | Y31: 1 | Z31: Demand
D32: Term > | F32: 6.623926169 | G32: 0 | H32: =H31+H30 -> 154524.0361 | I32: =I31+I30 -> -79416.2791 | J32: =J31+J30 -> -75107.75695 | L32: 0 | T32: 0 | U32: =U31+U30 -> -209177.6522 | V32: =V31+V30 -> 200.5699829 | W32: =W31+W30 -> 1567.09179 | X32: =X31+X30 -> 3944.842996 | Y32: 0 | Z32: Met
F33: 7 | H33: 0 | I33: 1 | J33: 2 | K33: L | U33: 0 | V33: 1 | W33: 2 | X33: L
M35: F | Q35: r- | S35: r+ | U35: X
C36: Investment | L36: 2 | M36: ='Econ 2'!S33-'Econ 2'!S53 -> -930.1617293 | N36: 2 | P36: 2 | Q36: ='Econ 2'!Q81/P0_2 -> -100.1184674 | R36: 2 | S36: ='Econ 2'!S81/P0_2 -> 0.7111256824 | T36: 2 | U36: =-I$19*V36-J$19*W36-K$19*X36 -> 763.5395922 | V36: =V25-V30 -> 1.290702115 | W36: -31.06082511 | X36: 32.30091441 | Y36: 2 | Z36: Physical
C37: Term | F37: =Term-(1/H41-1/NPV)/H37 -> 6.623920566 | H37: =LN(1-Iota)*(1-Iota)^Term+Iota*D43/F43 -> 0.3221841204 | L37: 1 | M37: ='Econ 1'!S33-'Econ 1'!S53 -> 989.7321633 | N37: 1 | P37: 1 | Q37: ='Econ 1'!Q81/P0_1 -> -0.5165883452 | R37: 1 | S37: ='Econ 1'!S81/P0_1 -> 52.77601525 | T37: 1 | U37: =-I$19*V37-J$19*W37-K$19*X37 -> -763.5395922 | V37: -1.290702115 | W37: 31.06082511 | X37: -32.30091441 | Y37: 1 | Z37: Export / Import
C38: Calculation | F38: =ITerm -> 7 | L38: 0 | M38: =M37+M36 -> 59.57043392 | N38: 0 | P38: 0 | Q38: =Q37+Q36 -> -100.6350557 | R38: 0 | S38: =S37+S36 -> 53.48714093 | T38: 0 | U38: =U37+U36 -> -1.421085472e-11 | V38: =V37+V36 -> 0 | W38: =W37+W36 -> 2.273736754e-13 | X38: =X37+X36 -> 2.273736754e-13 | Y38: 0 | Z38: Profile
Q39: G/year | S39: G/year | V39: 1 | W39: 2 | X39: L
D40: K | F40: G | H40: NPV | I40: 1
C41: 2 | D41: =-SUM('Econ 2'!E19:E22)/P0_2 -> -73338.15364 | E41: 2 | F41: =-SUM('Econ 2'!G19:G22)/P0_2 -> 60436.94476 | H41: =(1-Iota/V0)^(-Term) -> 0.5247898623 | I41: (1 - i)T
C42: 1 | D42: =-SUM('Econ 1'!E19:E22)/P0_1 -> -80998.93381 | E42: 1 | F42: =-SUM('Econ 1'!G19:G22)/P0_1 -> 54981.5084 | M42: k | O42: g | Q42: rk | S42: rg
C43: 0 | D43: =D42+D41 -> -154337.0875 | E43: 0 | F43: =F42+F41 -> 115418.4532 | H43: =1/(1+Iota*Term*D43/F43) -> 0.5247903595 | I43: 1 | L43: 2 | M43: =M50 -> 6490.34312 | N43: 2 | O43: =O50+O55+O60 -> 5.201895194 | P43: 2 | Q43: =IF(AND(S36>0,M43>0),-S36,0)+IF(AND(Q36<0,O43>=0),-Q36,0) -> 99.40734172 | R43: 2 | S43: =IF(AND(Q36<0,O43<0),-Q36,0)+IF(AND(S36>0,M43<=0),-S36,0) -> 0 | T43: 2 | U43: International
D44: G | F44: G | H44: =IState!C9 -> 0.5131581182 | I44: 1+iTK/G | L44: 1 | M44: =M51 -> -5.05307966 | N44: 1 | O44: =O51+O56+O61 -> -5199.768908 | P44: 1 | Q44: =IF(AND(S37>0,M44>0),-S37,0)+IF(AND(Q37<0,O44>=0),-Q37,0) -> 0 | R44: 1 | S44: =IF(AND(Q37<0,O44<0),-Q37,0)+IF(AND(S37>0,M44<=0),-S37,0) -> -52.25942691 | T44: 1 | U44: < Settlements
L45: 0 | M45: =-M43-M44 -> -6485.290041 | N45: 0 | O45: =-O43-O44 -> 5194.567013 | P45: 0 | Q45: =-Q43-Q44 -> -99.40734172 | R45: 0 | S45: =-S43-S44 -> 52.25942691 | T45: 0
M46: G | O46: G | Q46: G/year | S46: G/year
M49: k | O49: A | Q49: k | S49: A
L50: 2 | M50: 6490.34312 | N50: 2 | O50: 1.733610909 | P50: 2 | Q50: =M50+DT*Q43 -> 6491.337194 | R50: 2 | S50: =O50+DT*(S43-3*O50/Term+3*O60/Term) -> 1.733611326 | T50: 2
L51: 1 | M51: -5.05307966 | N51: 1 | O51: -1775.243772 | P51: 1 | Q51: =M51+DT*Q44 -> -5.05307966 | R51: 1 | S51: =O51+DT*(S44-3*O51/Term+3*O61/Term) -> -1775.362868 | T51: 1
L52: 0 | M52: -6485.290041 | N52: 0 | O52: 1773.510161 | P52: 0 | Q52: =-Q50-Q51 -> -6486.284114 | R52: 0 | S52: =-S50-S51 -> 1773.629257 | T52: 0
O54: B | S54: B
N55: 2 | O55: 1.734581261 | P55: 2 | R55: 2 | S55: =O55+DT*3*(O50-O55)/Term -> 1.734576867 | T55: 2
M56: @ time = t > | N56: 1 | O56: -1738.372762 | P56: 1 | R56: 1 | S56: =O56+DT*3*(O51-O56)/Term -> -1738.539752 | T56: 1 | U56: < @ time = t + d
N57: 0 | O57: 1736.638181 | P57: 0 | R57: 0 | S57: =-S55-S56 -> 1736.805175 | T57: 0
O59: C | S59: C
N60: 2 | O60: 1.733703024 | P60: 2 | R60: 2 | S60: =O60+DT*3*(O55-O60)/Term -> 1.733707001 | T60: 2
N61: 1 | O61: -1686.152374 | P61: 1 | R61: 1 | S61: =O61+DT*3*(O56-O61)/Term -> -1686.388882 | T61: 1
N62: 0 | O62: 1684.418671 | P62: 0 | R62: 0 | S62: =-S60-S61 -> 1684.655175 | T62: 0

Sheet Econ 1
AI4: =-SUM(AI6:AI9) -> -2069.208993 | AJ4: =-SUM(AJ6:AJ9) -> -16331.43283 | AK4: =-SUM(AK6:AK9) -> -53862.68242
F5: < Temporal Parameters, i.e.: Turnover Fractions > | T5: H | U5: 0 | V5: 1 | W5: 2 | X5: L | AG5: U | AH5: 0 | AI5: 1 | AJ5: 2 | AK5: L | AL5: t | AM5: Z | AO5: Z
T6: 0 | V6: 1 | W6: 1 | X6: 0 | Y6: 0 | AG6: 0 | AI6: 794.2843664 | AJ6: 5800 | AK6: 8766 | AL6: 0 | AM6: =Z19+AM19 -> -638719.1904 | AO6: =Utility!E28 -> -643139.1648 | AP6: 0
S7: =1-U7 -> 4 | T7: 1 | U7: =-SUM(V7:X7) -> -3 | V7: =SIGN(AI7) -> 1 | W7: 1 | X7: 1 | Y7: 1 | Z7: =1/(1-U7) -> 0.25 | AF7: Spatial Parameters, | AG7: 1 | AI7: 644.2843664 | AJ7: 5546.692237 | AK7: 29682.74915 | AL7: 1 | AM7: =AI6 -> 794.2843664 | AO7: =Utility!M14 -> 794.2843664 | AP7: 1
E8: i | G8: n | I8: V0 | S8: =1-U8 -> 4 | T8: 2 | U8: =-SUM(V8:X8) -> -3 | V8: 1 | W8: 1 | X8: 1 | Y8: 2 | Z8: =1/(1-U8) -> 0.25 | AF8: i.e.: production and | AG8: 2 | AI8: 572.4895161 | AJ8: 4693.503722 | AK8: 25626.02758 | AL8: 2 | AM8: =AJ6 -> 5800 | AO8: =Utility!M30 -> 5693.503722 | AP8: 2
E9: =Iota -> -0.1022324716 | G9: =Nu -> -0.1367051189 | I9: =V0 -> 1 | J9: =IState!H13 -> 0.1 | K9: =IState!I13 -> 0.3333333333 | L9: =IState!J13 -> 1 | N9: < V | S9: =X9-U9 -> 1 | T9: L | U9: =-SUM(V9:W9) -> -2 | V9: 1 | W9: 1 | X9: =SIGN(AK9) -> -1 | Y9: L | Z9: =1/(1-U9) -> 0.3333333333 | AF9: utility tradeoffs > | AG9: L | AI9: 58.15074408 | AJ9: 291.2368745 | AK9: =Zl_1 -> -10212.09431 | AL9: L | AM9: =L9*L49 -> -10212.09431 | AN9: ZL | AO9: =Utility!M45 -> -10219.74286 | AP9: L
E10: =IState!C$13 -> -0.1 | G10: =IState!E13 -> -0.1355310143 | I10: 0 | J10: 1 | K10: 2 | L10: L | S10: h | U10: -N | Z10: 1/(N + 1)
C13: Contra- | E13: -k | G13: -g | AG13: __
C14: Accounts > | E14: =E17+SUM(E19:E22) -> 171349.1236 | G14: =G17+SUM(G19:G22) -> -127317.2673 | I14: =-I17-SUM(I19:I22) -> -6.309619494e-11 | J14: =-J17-SUM(J19:J22) -> 8.84625706e-13 | K14: =-K17-SUM(K19:K22) -> 2.557953849e-13 | L14: =-L17-SUM(L19:L22) -> -1.61293201e-12 | N14: < Markets | Q14: =E9*Kappa1 -> -17517.4444 | S14: =G9*Gamma1 -> 17404.92216 | U14: =I$9*I14 -> -6.309619494e-11 | V14: =J9*J14 -> 8.84625706e-14 | W14: =K9*K14 -> 8.526512829e-14 | X14: =L9*L14 -> -1.61293201e-12 | Z14: < Market Pressure | AF14: =SUM(AF55:AF58) -> 4859683.995 | AG14: U | AH14: =SUM(U56:U58) -> -1658346.268 | AI14: =SUM(AI7:AI9) -> 1274.924627 | AJ14: =SUM(AJ7:AJ9) -> 10531.43283 | AK14: =SUM(AK7:AK8) -> 55308.77673
I15: 0 | J15: 1 | K15: 2 | L15: L | U15: 0 | V15: 1 | W15: 2 | X15: L | AH15: 0 | AI15: 1 | AJ15: 2 | AK15: L
R16: Balance of Payments
E17: =E25 -> -10.69018996 | G17: =G25+G33+G41 -> -10999.42712 | I17: =I25+I33+I41 -> -763.4097227 | J17: =J25+J33+J41 -> -12.77555484 | K17: =K25+K33+K41 -> 93.21327601 | L17: =L25+L33+L41 -> -32.37591848 | Q17: =Iota1*E17 -> 1.092884541 | S17: =Nu_1*G17 -> 1503.677992 | U17: =I$9*I17 -> -763.4097227 | V17: =J$9*J17 -> -1.277555484 | W17: =K$9*K17 -> 31.071092 | X17: =L$9*L17 -> -32.37591848 | AF17: =AF53+Q17+S17 -> -4858179.225 | AH17: =U17+U53 -> 2296328.386 | AI17: =AI4+V17 -> -2070.486549 | AJ17: =AJ4+W17 -> -16300.36174 | AK17: =AK4+X17 -> -53895.05834
I18: 0 | J18: 1 | K18: 2 | L18: L | R18: e | T18: E | U18: 0 | V18: 1 | W18: 2 | X18: L | Z18: Y | AF18: u + e | AG18: m | AH18: 0 | AI18: 1 | AJ18: 2 | AK18: L | AM18: l | AO18: (u + e)/h
D19: 0 | E19: =E27 -> 0 | F19: 0 | G19: =G27+G35+G43 -> 0 | H19: 0 | I19: =I27+I35+I43 -> 107136.5653 | J19: -1003.183223 | K19: -2476.766195 | L19: -8766 | M19: 0 | P19: 0 | Q19: =Iota1*E19 -> 0 | R19: 0 | S19: =Nu_1*G19 -> 0 | T19: 0 | U19: =I$9*I19 -> 107136.5653 | V19: -100.3183223 | W19: -825.5887316 | X19: -8766 | Y19: 0 | Z19: =U45 -> -107134.9622 | AB19: =-GPE!E10 -> -104588.8261 | AF19: =AF55+Q19+S19 -> 0 | AG19: 0 | AH19: =AM19 -> -531584.2282 | AI19: =AM20 -> 693.9525044 | AJ19: =AM21 -> 4974.388447 | AK19: =AK6+X19 -> 0 | AL19: 0 | AM19: =-V49*AM20-W49*AM21-X49*AM22 -> -531584.2282 | AN19: 0 | AP19: 0
C20: Monetary > | D20: 1 | E20: =E28 -> 82222.86735 | F20: 1 | H20: 1 | I20: -39724.20046 | J20: 496.081915 | K20: 488.671277 | L20: 962.6623269 | M20: 1 | N20: < Physical | P20: 1 | Q20: =Iota1*E20 -> -8405.846948 | R20: 1 | S20: =Nu_1*G20 -> 0 | T20: 1 | U20: -39724.20046 | V20: 49.6081915 | W20: 162.8904257 | X20: 962.6623269 | Y20: 1 | Z20: =AM7-AM20 -> 100.331862 | AA20: < Production | AF20: 2557772.778 | AG20: 1 | AH20: =U20+U56 -> -906748.9928 | AI20: =AI7+V20 -> 693.8925579 | AJ20: 5709.582663 | AK20: =AK7+X20 -> 30645.41148 | AL20: 1 | AM20: =AM7*Z28 -> 693.9525044 | AN20: 1 | AO20: =AF20/S7 -> 639443.1944 | AP20: 1
C21: Stocks | D21: 2 | E21: =E29 -> 89136.9464 | F21: 2 | H21: 2 | I21: -39392.32783 | J21: 320.5720553 | K21: 841.8846841 | L21: 1072.488222 | M21: 2 | N21: Stocks | P21: 2 | Q21: =Iota1*E21 -> -9112.690338 | R21: 2 | S21: =Nu_1*G21 -> 0 | T21: 2 | U21: -39392.32783 | V21: 32.05720553 | W21: 280.628228 | X21: 1072.488222 | Y21: 2 | Z21: =AM8-AM21 -> 825.6115531 | AD21: U + E | AE21: > | AF21: 2228364.868 | AG21: 2 | AH21: =U21+U57 -> -789967.5391 | AI21: 604.5467217 | AJ21: 4974.13195 | AK21: =AK8+X21 -> 26698.5158 | AL21: 2 | AM21: =AM8*Z29 -> 4974.388447 | AN21: 2 | AO21: =AF21/S8 -> 557091.2171 | AP21: 2
D22: L | F22: L | G22: =G30+G38+G46 -> -116317.8402 | H22: L | I22: -27256.62731 | J22: 199.304808 | K22: 1052.996958 | L22: 6763.22537 | M22: L | P22: L | Q22: =Iota1*E22 -> 0 | R22: L | S22: =Nu_1*G22 -> 15901.24417 | T22: L | U22: -27256.62731 | V22: 19.9304808 | W22: 350.9989859 | X22: 6763.22537 | Y22: L | Z22: =AM9-AM22 -> -6763.236531 | AA22: < | AB22: YL = - Leisure | AF22: =AF58+Q22+S22 -> 71929.05636 | AG22: L | AH22: =U22+U58 -> -68002.89224 | AI22: 78.08122488 | AJ22: 642.2358604 | AK22: =AM22 -> -3448.857778 | AL22: L | AM22: =AM9*Z30 -> -3448.857778 | AN22: L | AO22: =AF22/S9 -> 71929.05636 | AP22: L
E23: Investment | G23: Saving | Q23: - Dividends | S23: + Dividends | Z23: =Utility!M41 -> -6766
Q24: Created | S24: Absorbed
E25: -10.69018996 | G25: -3755.421311 | I25: -254.4917119 | J25: -4.282641347 | K25: 31.06591483 | L25: -10.77929573 | V25: - Y/l
H26: A | I26: 0 | J26: 1 | K26: 2 | L26: L | S26: w | T26: W | U26: 0 | V26: 1 | W26: 2 | X26: L | Z26: l/Z | AF26: b = e/w | AH26: Q = E0/W0 | AM26: z = pl | AO26: q = P0Q
D27: 0 | E27: 0 | F27: 0 | G27: 0 | H27: 0 | I27: 35711.91702 | J27: -334.4229087 | K27: -825.6007189 | L27: -2922 | M27: 0 | T27: 0 | U27: =-Z19/AM19 -> -0.2015390158 | V27: =-Z20/AI19 -> -0.1445803011 | W27: =-Z21/AJ19 -> -0.1659724732 | Y27: 0 | Z27: =AM19/AM6 -> 0.8322659413 | AE27: 0 | AG27: 0 | AL27: 0 | AN27: 0 | AP27: 0
D28: 1 | E28: 82222.86735 | F28: 1 | G28: -1.366686369e-08 | H28: 1 | I28: -13241.25286 | J28: 165.4000635 | K28: 162.8874758 | L28: 320.878599 | M28: 1 | Q28: E | R28: > | S28: =V27-U28 -> -0.01314544861 | T28: 1 | U28: =-SUM(V28:X28) -> -0.1314348525 | V28: =V20/AI20 -> 0.07149261212 | W28: 0.02852930508 | X28: 0.03141293526 | Y28: 1 | Z28: =(1-V28)*(1-W28)*(1-X28) -> 0.8736826932 | AE28: 1 | AF28: =Q20/S28 -> 639449.2268 | AG28: 1 | AH28: =U20/U28 -> 302234.9073 | AL28: 1 | AM28: =AM44*AM20 -> 639463.5284 | AN28: 1 | AO28: =P0_1*AH28 -> 639402.4587 | AP28: 1
D29: 2 | E29: 89136.9464 | F29: 2 | G29: 1.366686369e-08 | H29: 2 | I29: -13130.67395 | J29: 106.8734545 | K29: 280.6364289 | L29: 357.4903413 | M29: 2 | Q29: U + E | S29: =W27-U29 -> -0.01635776875 | T29: 2 | U29: =-SUM(V29:X29) -> -0.1496147044 | V29: 0.05302684537 | W29: 0.05641752789 | X29: 0.04017033118 | Y29: 2 | Z29: =(1-V29)*(1-W29)*(1-X29) -> 0.8576531805 | AE29: 2 | AF29: =Q21/S29 -> 557086.3898 | AG29: 2 | AH29: =U21/U29 -> 263291.82 | AL29: 2 | AM29: =AM45*AM21 -> 557109.9147 | AN29: 2 | AO29: =P0_1*AH29 -> 557015.1991 | AP29: 2
D30: L | E30: 0 | F30: L | G30: -38783.28951 | H30: L | I30: -9085.498502 | J30: 66.43203212 | K30: 351.0108994 | L30: 2254.410355 | M30: L | S30: =X30-U30 -> 0.2210763765 | T30: L | U30: =-SUM(V30:W30) -> -0.8017797855 | V30: =V22/AI22 -> 0.2552531781 | W30: =W22/AJ22 -> 0.5465266074 | X30: =(AK6+Z22)/AK22 -> -0.5807034089 | Y30: L | Z30: =(1-V30)*(1-W30) -> 0.337722868 | AE30: L | AF30: =S22/S30 -> 71926.47365 | AG30: L | AH30: =U22/U30 -> 33995.15403 | AL30: L | AM30: =AM46*AM22 -> 71963.89517 | AN30: L | AO30: =P0_1*AH30 -> 71919.50548 | AP30: L
X31: (t+Y) /l
G33: -3677.314774 | I33: -254.4699811 | J33: -4.259360497 | K33: 31.07109902 | L33: -10.79188418 | S33: =S35-U33 -> -2296102.063 | U33: =-SUM(V33:X33) -> 2296102.063 | V33: =-SUM(V35:V38) -> -901756.7887 | W33: =-SUM(W35:W38) -> -862813.7014 | X33: =-SUM(X35:X38) -> -531531.5733 | AF33: =AF35-AH33 -> -4858068.94 | AH33: =-SUM(AI33:AK33) -> 4858068.94 | AI33: =-SUM(AI35:AI38) -> -1907911.317 | AJ33: =-SUM(AJ35:AJ38) -> -1825548.48 | AK33: =-SUM(AK35:AK38) -> -1124609.143
H34: B | I34: 0 | J34: 1 | K34: 2 | L34: L | S34: hQ | T34: HQ | U34: 0 | V34: 1 | W34: 2 | X34: L | AF34: hb | AG34: Hb | AH34: 0 | AI34: 1 | AJ34: 2 | AK34: L | AO34: (PU + s)/N
F35: 0 | G35: 0 | H35: 0 | I35: 35712.18629 | J35: -334.3990271 | K35: -825.5890498 | L35: -2922 | M35: 0 | R35: 0 | S35: =U35-U35 -> 0 | T35: 0 | U35: =-U33-SUM(U36:U38) -> -531531.5733 | V35: =V6*AH28 -> 302234.9073 | W35: =W6*AH29 -> 263291.82 | X35: =X6*AH30 -> 0 | Y35: 0 | AE35: 0 | AF35: =AH35-AH35 -> 0 | AG35: 0 | AH35: =-AH33-SUM(AH36:AH38) -> -1124609.143 | AI35: =V6*AF28 -> 639449.2268 | AJ35: =W6*AF29 -> 557086.3898 | AK35: =X6*AF30 -> 0 | AL35: 0 | AP35: 0
F36: 1 | G36: -1.272996657e-08 | H36: 1 | I36: -13241.39886 | J36: 165.3648214 | K36: 162.8902647 | L36: 320.8873704 | M36: 1 | R36: 1 | S36: =S7*$AH28 -> 1208939.629 | T36: 1 | U36: =U7*$AH28 -> -906704.722 | V36: 302234.9073 | W36: 302234.9073 | X36: 302234.9073 | Y36: 1 | AE36: 1 | AF36: =S7*$AF28 -> 2557796.907 | AG36: 1 | AH36: =U7*$AF28 -> -1918347.68 | AI36: 639449.2268 | AJ36: 639449.2268 | AK36: 639449.2268 | AL36: 1 | AO36: =(AH56+AH84)/U7 -> 639440.1581 | AP36: 1
C37: System State | F37: 2 | G37: 1.272996657e-08 | H37: 2 | I37: -13130.77532 | J37: 106.8593968 | K37: 280.6283881 | L37: 357.4960369 | M37: 2 | R37: 2 | S37: =S8*$AH29 -> 1053167.28 | T37: 2 | U37: -789875.46 | V37: 263291.82 | W37: 263291.82 | X37: 263291.82 | Y37: 2 | AE37: 2 | AF37: =S8*$AF29 -> 2228345.559 | AG37: 2 | AH37: -1671259.169 | AI37: 557086.3898 | AJ37: 557086.3898 | AK37: 557086.3898 | AL37: 2 | AO37: =(AH57+AH85)/U8 -> 557086.513 | AP37: 2
C38: @ time = t > | F38: L | G38: -38773.23623 | H38: L | I38: -9085.542135 | J38: 66.43416944 | K38: 350.999298 | L38: 2254.408477 | M38: L | R38: L | S38: =S9*$AH30 -> 33995.15403 | T38: L | U38: -67990.30807 | V38: 33995.15403 | W38: 33995.15403 | X38: -33995.15403 | Y38: L | AE38: L | AF38: =S9*$AF30 -> 71926.47365 | AG38: L | AH38: -143852.9473 | AI38: 71926.47365 | AJ38: 71926.47365 | AK38: -71926.47365 | AL38: L | AO38: =(AH58+AH86)/U9 -> 71939.55204 | AP38: L
T40: __ | AE40: Intersection of
G41: -3566.691037 | I41: -254.4480298 | J41: -4.233552995 | K41: 31.07626216 | L41: -10.80473857 | S41: =SUM(S36:S38) -> 2296102.063 | T41: Q | U41: =SUM(U36:U38) -> -1764570.49 | V41: =SUM(V36:V38) -> 599521.8814 | W41: =SUM(W36:W38) -> 599521.8814 | X41: =SUM(X36:X37) -> 565526.7274 | AE41: S/D Schedules > | AF41: =AF33/AF17 -> 0.9999772993 | AH41: =AH33/AH17 -> 2.115581103 | AI41: =AI33/AI17 -> 921.4796969 | AJ41: =AJ33/AJ17 -> 111.9943538 | AK41: =AK33/AK17 -> 20.86664673 | AP41: 1/(N+1)
H42: C | I42: 0 | J42: 1 | K42: 2 | L42: L | U42: 0 | V42: 1 | W42: 2 | X42: L | AG42: c Hb/m | AH42: 0 | AI42: 1 | AJ42: 2 | AK42: L | AM42: p | AO42: (pZPU)
F43: 0 | G43: 0 | H43: 0 | I43: 35712.46201 | J43: -334.3612876 | K43: -825.5764261 | L43: -2922 | M43: 0 | AE43: Marginal Costs of Production > | AF43: 1 | AG43: 0 | AH43: =AH35/AH19 -> 2.115580341 | AI43: 921.4596428 | AJ43: 111.9909303 | AL43: 0 | AN43: 0 | AP43: 0
F44: 1 | G44: -1.179282891e-08 | H44: 1 | I44: -13241.54874 | J44: 165.3170301 | K44: 162.8935366 | L44: 320.8963574 | M44: 1 | U44: =-GPE!E10 -> -104588.8261 | V44: =-GPE!F10 -> 100 | W44: =-GPE!G10 -> 750 | X44: =-GPE!H10 -> 8766 | AF44: =AF36/AF20 -> 1.000009434 | AG44: 1 | AH44: 2.115632546 | AI44: 921.5392491 | AJ44: 111.995791 | AK44: =AK36/AK20 -> 20.86606758 | AL44: 1 | AM44: =AI49 -> 921.4802517 | AN44: 1 | AO44: =(AM44*AM7*AM56)^Z7 -> 639441.9259 | AP44: 1
F45: 2 | G45: 1.179282891e-08 | H45: 2 | I45: -13130.87857 | J45: 106.839204 | K45: 280.6198671 | L45: 357.5018438 | M45: 2 | Q45: =-Q83 -> 0 | S45: =-S83 -> 0 | T45: Yt | U45: =-U83 -> -107134.9622 | V45: =Z20 -> 100.331862 | W45: =Z21 -> 825.6115531 | X45: =AK6 -> 8766 | Z45: < Output | AE45: Values of > | AF45: =AF37/AF21 -> 0.9999913349 | AG45: 2 | AH45: 2.115604866 | AI45: 921.4943524 | AJ45: 111.9967052 | AK45: =AK37/AK21 -> 20.86581868 | AL45: 2 | AM45: =AJ49 -> 111.9956595 | AN45: 2 | AO45: =(AM45*AM8*AM57)^Z8 -> 557090.1053 | AP45: 2
F46: L | G46: -38761.31447 | H46: L | I46: -9085.586673 | J46: 66.43860647 | K46: 350.9867603 | L46: 2254.406537 | M46: L | U46: 0 | V46: 1 | W46: 2 | X46: L | AE46: Marginal Product | AF46: =AF38/AF22 -> 0.9999640936 | AG46: L | AH46: 2.115394545 | AI46: 921.175017 | AJ46: 111.993861 | AK46: =AK38/AK22 -> 20.85515793 | AL46: L | AM46: =-AK49 -> -20.86600834 | AN46: L | AO46: =(AM46*AM9*AM58)^Z9 -> 71947.27533 | AP46: L
S48: =GPE!C18/GPE!$E18 -> 0.05 | U48: =GPE!E18/GPE!$E18 -> 1 | V48: =GPE!F18/GPE!$E18 -> 441.9334589 | W48: =GPE!G18/GPE!$E18 -> 53.8606403 | X48: =GPE!H18/GPE!$E18 -> 10 | AF48: 1 | AH48: =GPE!E18 -> 2 | AI48: =GPE!F18 -> 883.8669178 | AJ48: =GPE!G18 -> 107.7212806 | AK48: =GPE!H18 -> 20
G49: =3*G41/Term1 -> -1615.367207 | L49: -10212.09431 | R49: Currency > | S49: =S33/AF33 -> 0.4726367805 | T49: Y | U49: ='Econ 0'!H19 -> 1.000014693 | V49: ='Econ 0'!I19 -> 435.5683884 | W49: ='Econ 0'!J19 -> 52.93848547 | X49: ='Econ 0'!K19 -> 9.863015088 | Z49: < Values | AE49: Prices > | AF49: =P0_1*S49 -> 0.9999014416 | AG49: P | AH49: =AH33/(U53+U17) -> 2.115581103 | AI49: =P0_1*V49 -> 921.4802517 | AJ49: =P0_1*W49 -> 111.9956595 | AK49: =P0_1*X49 -> 20.86600834
Q50: Value | S50: G/$ | U50: 0 | V50: 1 | W50: 2 | X50: L | Z50: G/unit | AD50: $/unit | AF50: $/$ | AH50: 0 | AI50: 1 | AJ50: 2 | AK50: L
F51: 0 | G51: =3*G43/Term1 -> 0 | H51: 0
F52: 1 | G52: =3*G44/Term1 -> -5.341014654e-09 | H52: 1
E53: Maturing | F53: 2 | G53: =3*G45/Term1 -> 5.341014654e-09 | H53: 2 | S53: =S55-U53 -> -2297091.796 | U53: =-SUM(V53:X53) -> 2297091.796 | V53: =V$49*AI4 -> -901282.0264 | W53: =W$49*AJ4 -> -864561.3198 | X53: =X$49*AK4 -> -531248.4494 | AF53: =AF55-AH53 -> -4859683.995 | AH53: =-SUM(AI53:AK53) -> 4859683.995 | AI53: =AI$49*AI4 -> -1906735.224 | AJ53: =AJ$49*AJ4 -> -1829049.591 | AK53: =AK$49*AK4 -> -1123899.181
E54: Principal > | F54: L | G54: =3*G46/Term1 -> -17555.13882 | H54: L | S54: ¡ | T54: YU | U54: 0 | V54: 1 | W54: 2 | X54: L | AF54: u | AG54: PU | AH54: 0 | AI54: 1 | AJ54: 2 | AK54: L | AM54: PU
R55: 0 | S55: =U55-U55 -> 0 | T55: 0 | U55: =-U53-SUM(U56:U58) -> -638745.5272 | V55: =V$49*AI6 -> 345965.1614 | W55: 307043.2157 | X55: 86459.19026 | Y55: 0 | AF55: =AH55-AH55 -> 0 | AG55: 0 | AH55: =-AH53-SUM(AH56:AH58) -> -1351317.967 | AI55: =AI$49*AI6 -> 731917.3579 | AJ55: 649574.8251 | AK55: 182911.4291 | AL55: 0 | AN55: 0
R56: 1 | S56: =V55-U56 -> 1212989.954 | T56: 1 | U56: =-SUM(V56:X56) -> -867024.7923 | V56: 280629.9032 | W56: 293633.4864 | X56: 292761.4027 | Y56: 1 | Z56: Interaction | AE56: Interaction | AF56: =AI55-AH56 -> 2566178.625 | AG56: 1 | AH56: =-SUM(AI56:AK56) -> -1834261.267 | AI56: 593695.3201 | AJ56: 621205.4552 | AK56: 619360.4914 | AL56: 1 | AM56: =AI56*AJ56*AK56 -> 2.284243433e+17 | AN56: 1
R57: 2 | S57: =W55-U57 -> 1057618.427 | T57: 2 | U57: =-SUM(V57:X57) -> -750575.2112 | V57: 249358.3359 | W57: 248466.9786 | X57: 252749.8967 | Y57: 2 | Z57: < of Utility | AE57: of Utility > | AF57: =AJ55-AH57 -> 2237477.559 | AG57: 2 | AH57: =-SUM(AI57:AK57) -> -1587902.733 | AI57: 527537.7834 | AJ57: 525652.0448 | AK57: 534712.9053 | AL57: 2 | AM57: =AI57*AJ57*AK57 -> 1.482765915e+17 | AN57: 2
R58: L | S58: =X55+X58-U58 -> 26483.41494 | T58: L | U58: =-SUM(V58:W58) -> -40746.26493 | V58: 25328.62588 | W58: 15417.63905 | X58: -100722.0403 | Y58: L | Z58: with Values | AE58: with Prices | AF58: =AK55+AK58-AH58 -> 56027.81219 | AG58: L | AH58: =-SUM(AI58:AJ58) -> -86202.02811 | AI58: 53584.76229 | AJ58: 32617.26583 | AK58: -213085.6451 | AL58: L | AM58: =AI58*AJ58 -> 1747788436 | AN58: L
AH60: - PU
Q62: =IF(AF62/AF$49<AF53,AF62/AF$49-AF53,0) -> 0 | S62: =IF(AF62/AF$49>AF53,AF62/AF$49-AF53,0) -> 947.4583136 | U62: =AH62/AH$49-U53 -> -674.201328 | V62: =AI62/AI$49-AI4 -> -1.373489037 | W62: =AJ62/AJ$49-AJ4 -> 30.37919375 | X62: =AK62/AK$49-AK4 -> -34.04423192 | AF62: =AF64-AH62 -> -4858257.668 | AH62: =-SUM(AI62:AK62) -> 4858257.668 | AI62: =-SUM(AI64:AI67) -> -1908000.867 | AJ62: =-SUM(AJ64:AJ67) -> -1825647.253 | AK62: =-SUM(AK64:AK67) -> -1124609.548
R63: -f | T63: Q | U63: 0 | V63: 1 | W63: 2 | X63: L | AF63: hz | AG63: Hz | AH63: 0 | AI63: 1 | AJ63: 2 | AK63: L
P64: 0 | Q64: =IF(AF64/AF$49<AF55,AF64/AF$49-AF55,0) -> 0 | R64: 0 | S64: =IF(AF64/AF$49>AF55,AF64/AF$49-AF55,0) -> 0 | T64: 0 | U64: =AH64/AH$49-U55 -> 107161.299 | V64: =AI64/AI$49-AI6 -> -100.331862 | W64: -825.6115531 | X64: -8766 | Y64: 0 | AE64: 0 | AF64: =AH64-AH64 -> 0 | AG64: 0 | AH64: =-AH62-SUM(AH65:AH67) -> -1124609.548 | AI64: =V6*$AM28 -> 639463.5284 | AJ64: =W6*$AM29 -> 557109.9147 | AK64: =X6*$AM30 -> 0 | AL64: 0
P65: 1 | Q65: =AF65/AF$49-AF56 -> -8072.388078 | R65: 1 | T65: 1 | U65: =AH65/AH$49-U56 -> -39766.52959 | V65: 49.66813798 | W65: 163.0248289 | X65: 963.4347257 | Y65: 1 | Z65: Optimal | AE65: 1 | AF65: =S7*$AM28 -> 2557854.114 | AG65: 1 | AH65: =U7*$AM28 -> -1918390.585 | AI65: 639463.5284 | AJ65: 639463.5284 | AK65: 639463.5284 | AL65: 1
P66: 2 | Q66: =AF66/AF$49-AF57 -> -8818.246559 | R66: 2 | T66: 2 | U66: =AH66/AH$49-U57 -> -39434.56037 | V66: 32.09198598 | W66: 280.8847246 | X66: 1073.372975 | Y66: 2 | Z66: < Rates of | AE66: 2 | AF66: =S8*$AM29 -> 2228439.659 | AG66: 2 | AH66: -1671329.744 | AI66: 557109.9147 | AJ66: 557109.9147 | AK66: 557109.9147 | AL66: 2
P67: L | Q67: 0 | R67: L | S67: =AF67/AF$49-AF58 -> 15943.17632 | T67: L | U67: =AH67/AH$49-U58 -> -27286.00768 | V67: 19.94522709 | W67: 351.3228059 | X67: 6763.236531 | Y67: L | Z67: Change | AE67: L | AF67: =S9*$AM30 -> 71963.89517 | AG67: L | AH67: -143927.7903 | AI67: 71963.89517 | AJ67: 71963.89517 | AK67: -71963.89517 | AL67: L
Z69: Domestic
Q70: =SUM(Q65:Q67) -> -16890.63464 | S70: =SUM(S65:S67) -> 15943.17632 | T70: D | U70: =SUM(U65:U67) -> -106487.0976 | V70: =SUM(V65:V67) -> 101.7053511 | W70: =SUM(W65:W67) -> 795.2323594 | X70: =SUM(X65:X66) -> 2036.807701 | Z70: < Demand
U71: 0 | V71: 1 | W71: 2 | X71: L
Z72: Domestic
Q73: =Q45+Q14 -> -17517.4444 | S73: =S45+S14 -> 17404.92216 | T73: S | U73: =U45+U14 -> -107134.9622 | V73: =V45+V14 -> 100.331862 | W73: =W45+W14 -> 825.6115531 | X73: =X45+Z22+X14 -> 2002.763469 | Z73: < Supply | AD73: =-AH73 -> 0 | AF73: 0 | AH73: =-SUM(AI73:AK73) -> 0
U74: 0 | V74: 1 | W74: 2 | X74: L | AE74: Transfers | AG74: FI | AH74: 0 | AI74: 1 | AJ74: 2 | AK74: L
G75: T | AC75: 0 | AD75: =AH75-AH75 -> 0 | AE75: 0 | AF75: 0 | AG75: 0 | AH75: =-SUM(AI75:AK75) -> 0 | AI75: 0 | AJ75: 0 | AK75: 0 | AL75: 0
E76: Investment | F76: > | G76: =Term -> 6.623926169 | Z76: Demand | AC76: 1 | AD76: =AI75-AH76 -> -3.418498969 | AE76: 1 | AF76: -1.272988639e-09 | AG76: 1 | AH76: =-SUM(AI76:AK76) -> 3.418498969 | AI76: 0 | AJ76: =(AF45-AF44)*(V0-Iota)*(E20+E21) -> -3.418498969 | AL76: 1 | AM76: Equity
E77: Term | G77: =ITerm -> 7 | T77: F | U77: ='Econ 0'!U20 -> 0.9989137175 | V77: ='Econ 0'!V20 -> 0.9991860121 | W77: ='Econ 0'!W20 -> 0.9991428526 | X77: ='Econ 0'!X20 -> 0.9991440932 | Z77: < Factors | AC77: 2 | AD77: =AJ75-AH77 -> 3.418498969 | AE77: 2 | AF77: 1.272988639e-09 | AG77: 2 | AH77: =-SUM(AI77:AK77) -> -3.418498969 | AI77: =-AJ76 -> 3.418498969 | AJ77: 0 | AL77: 2 | AM77: < Markets
U78: 0 | V78: 1 | W78: 2 | X78: L | AC78: L | AD78: =AK75-AH78 -> 0 | AE78: L | AF78: 0 | AG78: L | AH78: =-SUM(AI78:AK78) -> 0 | AL78: L
R80: International Settlements | Z80: imports ( - ) | AE80: Trade Balance
E81: =P0_1*'Econ 0'!M51 -> -10.69019984 | G81: =P0_1*'Econ 0'!O51 -> -3755.672178 | I81: =I25+DT*(U81-I$9*I25*3) -> -254.4923565 | J81: =J25+DT*(V81-J$9*J25*3) -> -4.282700444 | K81: =K25+DT*(W81-K$9*K25*3) -> 31.06586393 | L81: =L25+DT*(X81-L$9*L25*3) -> -10.77892601 | Q81: =AD81-Q17 -> -1.092884541 | S81: =AF81-S17 -> 111.6519406 | U81: ='Econ 0'!U37 -> -763.5395922 | V81: ='Econ 0'!V37 -> -1.290702115 | W81: ='Econ 0'!W37 -> 31.06082511 | X81: ='Econ 0'!X37 -> -32.30091441 | Z81: < eXports ( + ) | AD81: =IF(AH81>0,-AH81,0) -> 0 | AF81: =IF(AH81<0,-AH81,0) -> 1615.329933 | AH81: =AH$49*U81 -> -1615.329933 | AI81: =AI$49*V81 -> -1189.35651 | AJ81: =AJ$49*W81 -> 3478.677592 | AK81: =AK$49*X81 -> -673.9911495
H82: A | I82: 0 | J82: 1 | K82: 2 | L82: L | R82: r | T82: R | U82: 0 | V82: 1 | W82: 2 | X82: L | AE82: - NCF | AG82: PR | AH82: 0 | AI82: 1 | AJ82: 2 | AK82: L
D83: 0 | E83: =E27+DT*(Q83-Iota1*E19) -> 0 | F83: 0 | G83: =G27+DT*(S83-Nu_1*G19+G51-3*G27/Term1) -> 0 | H83: 0 | I83: =I27+DT*(U83-I$9*I27*3) -> 35711.90913 | J83: -334.4229586 | K83: -825.6008272 | L83: -2922 | M83: 0 | P83: 0 | Q83: 0 | R83: 0 | S83: =AF75+AF83 -> 0 | T83: 0 | U83: =-U81-SUM(U84:U86) -> 107134.9622 | V83: =-V45 -> -100.331862 | W83: =-W45 -> -825.6115531 | X83: =-X45 -> -8766 | Y83: 0 | Z83: < Output ( - ) | AC83: 0 | AD83: 0 | AE83: 0 | AF83: =AH83-AH83 -> 0 | AG83: 0 | AH83: =-AH81-SUM(AH84:AH86) -> 226708.4191 | AI83: =-AI81-SUM(AI84:AI86) -> -92453.82946 | AJ83: =-AJ81-SUM(AJ84:AJ86) -> -92464.91039 | AK83: =-AK81-SUM(AK84:AK86) -> -41789.67925 | AL83: 0
D84: 1 | E84: =E28+DT*(Q84-Iota1*E20) -> 82222.94541 | F84: 1 | G84: =G28+DT*(S84-Nu_1*G20+G52-3*G28/Term1) -> -1.3671106e-08 | H84: 1 | I84: -13241.2486 | J84: 165.4001404 | K84: 162.8874519 | L84: 320.8783422 | M84: 1 | P84: 1 | Q84: =AD76+AD84 -> -8398.040374 | R84: 1 | S84: =AF76+AF84 -> -1.272988639e-09 | T84: 1 | U84: =U$77*U65 -> -39723.3319 | V84: 49.62770872 | W84: 162.8850926 | X84: 962.6101154 | Y84: 1 | AC84: 1 | AD84: =AI83-AH84 -> -8394.621875 | AE84: 1 | AF84: 0 | AG84: 1 | AH84: =-SUM(AI84:AK84) -> -84059.20759 | AI84: =AI$49*V84 -> 45730.95352 | AJ84: 18242.42337 | AK84: 20085.8307 | AL84: 1 | AM84: Monetary
D85: 2 | E85: =E29+DT*(Q85-Iota1*E21) -> 89137.02644 | F85: 2 | G85: =G29+DT*(S85-Nu_1*G21+G53-3*G29/Term1) -> 1.3671106e-08 | H85: 2 | I85: -13130.67096 | J85: 106.8734928 | K85: 280.6365043 | L85: 357.4901738 | M85: 2 | P85: 2 | Q85: =AD77+AD85 -> -9104.686285 | R85: 2 | S85: 1.272988639e-09 | T85: 2 | U85: -39391.7233 | V85: 32.06586349 | W85: 280.643965 | X85: 1072.454268 | Y85: 2 | Z85: < Rates of | AC85: 2 | AD85: =AJ83-AH85 -> -9108.104784 | AE85: 2 | AF85: 0 | AG85: 2 | AH85: =-SUM(AI85:AK85) -> -83356.80561 | AI85: 29548.05996 | AJ85: 31430.90595 | AK85: 22377.8397 | AL85: 2 | AM85: < Transactions
D86: L | E86: =E30+DT*(Q86-Iota1*E22) -> 0 | F86: L | G86: =G30+DT*(S86-Nu_1*G22+G54-3*G30/Term1) -> -38783.32846 | H86: L | I86: -9085.497221 | J86: 66.43202594 | K86: 351.0110071 | L86: 2254.41041 | M86: L | P86: L | Q86: 0 | R86: L | S86: =AF78+AF86 -> 15887.39673 | T86: L | U86: =U$77*U67 -> -27256.36737 | V86: =V$77*V67 -> 19.92899192 | W86: =W$77*W67 -> 351.0216704 | X86: =-X81-SUM(X83:X85) -> 6763.236531 | Y86: L | Z86: Change | AC86: L | AD86: 0 | AE86: L | AF86: =AK83-AH86 -> 15887.39673 | AG86: L | AH86: =-SUM(AI86:AK86) -> -57677.07597 | AI86: =AI$49*V86 -> 18364.17249 | AJ86: =AJ$49*W86 -> 39312.90348 | AK86: 0 | AL86: L
Q87: Debt Service | S87: Passive Income | AD87: Cost of Sales | AF87: Consumption
AD88: Minus Sales | AF88: Minus Wages
G89: =P0_1*'Econ 0'!O56 -> -3677.668566 | I89: =I33+DT*I$9*3*(I25-I33) -> -254.470633 | J89: =J33+DT*J$9*3*(J25-J33) -> -4.25943034 | K89: =K33+DT*K$9*3*(K25-K33) -> 31.07104718 | L89: =L33+DT*L$9*3*(L25-L33) -> -10.79150653 | Q89: =GPE!A8 -> 0 | S89: =GPE!C8 -> -0.2886111448 | U89: =GPE!E8 -> 0 | V89: =GPE!F8 -> 0 | W89: =GPE!G8 -> 0 | X89: =GPE!H8 -> 0
H90: B | I90: 0 | J90: 1 | K90: 2 | L90: L | R90: r | T90: R | U90: 0 | V90: 1 | W90: 2 | X90: L
F91: 0 | G91: =G35+DT*3*(G27-G35)/Term1 -> 0 | H91: 0 | I91: =I35+DT*I$9*3*(I27-I35) -> 35712.17821 | J91: -334.3990988 | K91: -825.5891665 | L91: -2922 | M91: 0 | P91: 0 | Q91: =GPE!C10 -> 0 | R91: 0 | S91: =GPE!A10 -> 0 | T91: 0 | U91: =GPE!E10 -> 104588.8261 | V91: =GPE!F10 -> -100 | W91: =GPE!G10 -> -750 | X91: =GPE!H10 -> -8766 | Y91: 0
F92: 1 | G92: =G36+DT*3*(G28-G36)/Term1 -> -1.273420981e-08 | H92: 1 | I92: -13241.39448 | J92: 165.3649271 | K92: 162.8902368 | L92: 320.8871073 | M92: 1 | P92: 1 | Q92: =GPE!C11 -> -8035.153798 | R92: 1 | S92: =GPE!A11 -> 0 | T92: 1 | U92: =GPE!E11 -> -40175.76899 | V92: =GPE!F11 -> 50 | W92: =GPE!G11 -> 150 | X92: =GPE!H11 -> 1000 | Y92: 1
C93: System State | F93: 2 | G93: =G37+DT*3*(G29-G37)/Term1 -> 1.273420981e-08 | H93: 2 | I93: -13130.77228 | J93: 106.859439 | K93: 280.6284685 | L93: 357.495866 | M93: 2 | P93: 2 | Q93: =GPE!C12 -> -7344.632768 | R93: 2 | S93: =GPE!A12 -> 0 | T93: 2 | U93: =GPE!E12 -> -36723.16384 | V93: =GPE!F12 -> 30 | W93: =GPE!G12 -> 250 | X93: =GPE!H12 -> 1000 | Y93: 2
C94: @ time = t + d > | F94: L | G94: =G38+DT*3*(G30-G38)/Term1 -> -38773.28176 | H94: L | I94: -9085.540826 | J94: 66.43416302 | K94: 350.999414 | L94: 2254.408533 | M94: L | P94: L | Q94: =GPE!A13 -> 0 | R94: L | S94: =GPE!C13 -> 15379.78657 | T94: L | U94: =GPE!E13 -> -27689.89328 | V94: =GPE!F13 -> 20 | W94: =GPE!G13 -> 350 | X94: =GPE!H13 -> 6766 | Y94: L
G97: =P0_1*'Econ 0'!O61 -> -3567.1921 | I97: =I41+DT*I$9*3*(I33-I41) -> -254.4486883 | J97: =J41+DT*J$9*3*(J33-J41) -> -4.233630418 | K97: =K41+DT*K$9*3*(K33-K41) -> 31.07621052 | L97: =L41+DT*L$9*3*(L33-L41) -> -10.80435293 | S97: u
H98: C | I98: 0 | J98: 1 | K98: 2 | L98: L | S98: (h/w-1)
F99: 0 | G99: =G43+DT*3*(G35-G43)/Term1 -> 0 | H99: 0 | I99: =I43+DT*I$9*3*(I35-I43) -> 35712.45374 | J99: -334.3614008 | K99: -825.5765523 | L99: -2922 | M99: 0 | T99: 0
F100: 1 | G100: =G44+DT*3*(G36-G44)/Term1 -> -1.179707324e-08 | H100: 1 | I100: -13241.54424 | J100: 165.3171735 | K100: 162.8935038 | L100: 320.8960878 | M100: 1 | S100: =AF56/(S7/S28-1) -> -8405.767909 | T100: 1
F101: 2 | G101: =G45+DT*3*(G37-G45)/Term1 -> 1.179707324e-08 | H101: 2 | I101: -13130.87547 | J101: 106.8392645 | K101: 280.6199523 | L101: 357.5016695 | M101: 2 | S101: =AF57/(S8/S29-1) -> -9112.768979 | T101: 2
F102: L | G102: =G46+DT*3*(G38-G46)/Term1 -> -38761.36846 | H102: L | I102: -9085.585337 | J102: 66.43859316 | K102: 350.9868857 | L102: 2254.406596 | M102: L | S102: =AF58/(S9/S30-1) -> 15901.97721 | T102: L
L105: =L49+DT*S105 -> -10212.09378 | S105: =(S102-S22)/AK49/(1-Z30) -> 0.05304499429 | T105: < | U105: ∂ZL/∂t
L106: =Utility!M45 -> -10219.74286

Sheet Econ 2
AI4: =-SUM(AI6:AI9) -> -2069.208993 | AJ4: =-SUM(AJ6:AJ9) -> -16224.93656 | AK4: =-SUM(AK6:AK9) -> -53791.84601
F5: < Temporal Parameters, i.e.: Turnover Fractions > | T5: H | U5: 0 | V5: 1 | W5: 2 | X5: L | AG5: U | AH5: 0 | AI5: 1 | AJ5: 2 | AK5: L | AL5: t | AM5: Z | AO5: Z
T6: 0 | V6: 1 | W6: 1 | X6: 0 | Y6: 0 | AG6: 0 | AI6: 794.2843664 | AJ6: 5693.503722 | AK6: 8766 | AL6: 0 | AM6: =Z19+AM19 -> -632383.6478 | AO6: =Utility!E28 -> -643139.1648 | AP6: 0
S7: =1-U7 -> 4 | T7: 1 | U7: =-SUM(V7:X7) -> -3 | V7: =SIGN(AI7) -> 1 | W7: 1 | X7: 1 | Y7: 1 | Z7: =1/(1-U7) -> 0.25 | AF7: Spatial Parameters, | AG7: 1 | AI7: 644.2843664 | AJ7: 5546.692237 | AK7: 29682.74915 | AL7: 1 | AM7: =AI6 -> 794.2843664 | AO7: =Utility!M14 -> 794.2843664 | AP7: 1
E8: i | G8: n | I8: V0 | S8: =1-U8 -> 4 | T8: 2 | U8: =-SUM(V8:X8) -> -3 | V8: 1 | W8: 1 | X8: 1 | Y8: 2 | Z8: =1/(1-U8) -> 0.25 | AF8: i.e.: production and | AG8: 2 | AI8: 572.4895161 | AJ8: 4693.503722 | AK8: 25626.02758 | AL8: 2 | AM8: =AJ6 -> 5693.503722 | AO8: =Utility!M30 -> 5693.503722 | AP8: 2
E9: =Iota -> -0.1022324716 | G9: =Nu -> -0.1367051189 | I9: =V0 -> 1 | J9: =IState!H13 -> 0.1 | K9: =IState!I13 -> 0.3333333333 | L9: =IState!J13 -> 1 | N9: < V | S9: =X9-U9 -> 1 | T9: L | U9: =-SUM(V9:W9) -> -2 | V9: 1 | W9: 1 | X9: -1 | Y9: L | Z9: =1/(1-U9) -> 0.3333333333 | AF9: utility tradeoffs > | AG9: L | AI9: 58.15074408 | AJ9: 291.2368745 | AK9: =Zl_2 -> -10282.93072 | AL9: L | AM9: =L9*L49 -> -10282.93072 | AN9: ZL | AO9: =Utility!M45 -> -10219.74286 | AP9: L
E10: =IState!C13 -> -0.1 | G10: =IState!E13 -> -0.1355310143 | I10: 0 | J10: 1 | K10: 2 | L10: L | S10: h | U10: -N | Z10: 1/(N + 1)
C13: Contra- | E13: -k | G13: -g | AG13: __
C14: Accounts > | E14: =E17+SUM(E19:E22) -> 158775.2842 | G14: =G17+SUM(G19:G22) -> -120197.5269 | I14: 0 | J14: 0 | K14: 0 | L14: 0 | N14: < Markets | Q14: =E9*Kappa2 -> -16231.98972 | S14: =G9*Gamma2 -> 16431.6172 | U14: =I$9*I14 -> 0 | V14: =J9*J14 -> 0 | W14: =K9*K14 -> 0 | X14: =L9*L14 -> 0 | Z14: < Market Pressure | AF14: =SUM(AF56:AF58) -> 4556266.603 | AG14: U | AH14: =SUM(U56:U58) -> -1658346.268 | AI14: =SUM(AI7:AI9) -> 1274.924627 | AJ14: =SUM(AJ7:AJ9) -> 10531.43283 | AK14: =SUM(AK7:AK8) -> 55308.77673
I15: 0 | J15: 1 | K15: 2 | L15: L | U15: 0 | V15: 1 | W15: 2 | X15: L | AH15: 0 | AI15: 1 | AJ15: 2 | AK15: L
R16: Balance of Payments
E17: =E25 -> 12907.16459 | G17: =G25+G33+G41 -> 10.34646514 | I17: =I25+I33+I41 -> 763.4369299 | J17: =J25+J33+J41 -> 12.77476938 | K17: =K25+K33+K41 -> -93.21399899 | L17: =L25+L33+L41 -> 32.37547119 | Q17: =Iota2*E17 -> -1319.531337 | S17: =Nu_2*G17 -> -1.414414748 | U17: =I$9*I17 -> 763.4369299 | V17: =J$9*J17 -> 1.277476938 | W17: =K$9*K17 -> -31.071333 | X17: =L$9*L17 -> 32.37547119 | AF17: =AF53+Q17+S17 -> -4557587.549 | AH17: =U53+U17 -> 2291518.82 | AI17: =AI4+V17 -> -2067.931516 | AJ17: =AJ4+W17 -> -16256.00789 | AK17: =AK4+X17 -> -53759.47054
I18: 0 | J18: 1 | K18: 2 | L18: L | R18: e | T18: E | U18: 0 | V18: 1 | W18: 2 | X18: L | Z18: Y | AF18: u + e | AG18: m | AH18: 0 | AI18: 1 | AJ18: 2 | AK18: L | AM18: l | AO18: (u + e)/h
D19: 0 | E19: =E27 -> 0 | F19: 0 | G19: =G27+G35+G43 -> 0 | H19: 0 | I19: =I27+I35+I43 -> 102041.0826 | J19: -1001.537756 | K19: -2224.082786 | L19: -8766 | M19: 0 | P19: 0 | Q19: =Iota2*E19 -> 0 | R19: 0 | S19: =Nu_2*G19 -> 0 | T19: 0 | U19: =I$9*I19 -> 102041.0826 | V19: -100.1537756 | W19: -741.3609286 | X19: -8766 | Y19: 0 | Z19: =U45 -> -102042.6901 | AB19: =-GPE!E10 -> -104588.8261 | AF19: =AF55+Q19+S19 -> 0 | AG19: 0 | AH19: =AM19 -> -530340.9577 | AI19: =AM20 -> 694.0462455 | AJ19: =AM21 -> 4952.023486 | AK19: =AK6+X19 -> 0 | AL19: 0 | AM19: =-V49*AM20-W49*AM21-X49*AM22 -> -530340.9577 | AN19: 0 | AP19: 0
C20: Monetary > | D20: 1 | E20: =E28 -> 77149.51557 | F20: 1 | H20: 1 | I20: -39692.07864 | J20: 495.6629857 | K20: 487.9987614 | L20: 961.5764271 | M20: 1 | N20: < Physical | P20: 1 | Q20: =Iota2*E20 -> -7887.185656 | R20: 1 | S20: =Nu_2*G20 -> 0 | T20: 1 | U20: -39692.07864 | V20: 49.56629857 | W20: 162.6662538 | X20: 961.5764271 | Y20: 1 | Z20: =AM7-AM20 -> 100.2381209 | AA20: < Production | AF20: 2404725.552 | AG20: 1 | AH20: =U56+U20 -> -906716.871 | AI20: =AI7+V20 -> 693.850665 | AJ20: 5709.358491 | AK20: =AK7+X20 -> 30644.32558 | AL20: 1 | AM20: =AM7*Z28 -> 694.0462455 | AN20: 1 | AO20: =AF20/S7 -> 601181.3879 | AP20: 1
C21: Stocks | D21: 2 | E21: =E29 -> 68718.60399 | F21: 2 | H21: 2 | I21: -35715.42912 | J21: 292.2854665 | K21: 772.3636485 | L21: 948.1964771 | M21: 2 | N21: Stocks | P21: 2 | Q21: =Iota2*E21 -> -7025.272728 | R21: 2 | S21: =Nu_2*G21 -> 0 | T21: 2 | U21: -35715.42912 | V21: 29.22854665 | W21: 257.4545495 | X21: 948.1964771 | Y21: 2 | Z21: =AM8-AM21 -> 741.4802365 | AD21: U + E | AE21: > | AF21: 2085343.233 | AG21: 2 | AH21: =U57+U21 -> -786290.6403 | AI21: 601.7180628 | AJ21: 4950.958272 | AK21: =AK8+X21 -> 26574.22406 | AL21: 2 | AM21: =AM8*Z29 -> 4952.023486 | AN21: 2 | AO21: =AF21/S8 -> 521335.8082 | AP21: 2
D22: L | F22: L | G22: =G30+G38+G46 -> -120207.8733 | H22: L | I22: -27397.01175 | J22: 200.8145345 | K22: 1056.934375 | L22: 6823.851625 | M22: L | P22: L | Q22: =Iota2*E22 -> 0 | R22: L | S22: =Nu_2*G22 -> 16433.03161 | T22: L | U22: -27397.01175 | V22: 20.08145345 | W22: 352.3114583 | X22: 6823.851625 | Y22: L | Z22: =AM9-AM22 -> -6823.920473 | AA22: < | AB22: YL = - Leisure | AF22: =AF58+Q22+S22 -> 67718.39192 | AG22: L | AH22: =U58+U22 -> -68143.27668 | AI22: 78.23219752 | AJ22: 643.5483327 | AK22: =AM22 -> -3459.010245 | AL22: L | AM22: =AM9*Z30 -> -3459.010245 | AN22: L | AO22: =AF22/S9 -> 67718.39192 | AP22: L
E23: Investment | G23: Saving | Q23: - Dividends | S23: + Dividends | Z23: =Utility!M41 -> -6766
Q24: Created | S24: Absorbed
E25: 12907.16459 | G25: 3.448116509 | I25: 254.5005764 | J25: 4.282525136 | K25: -31.066139 | L25: 10.77914982 | V25: - Y/l
H26: A | I26: 0 | J26: 1 | K26: 2 | L26: L | S26: w | T26: W | U26: 0 | V26: 1 | W26: 2 | X26: L | Z26: l/Z | AF26: b = e/w | AH26: Q = E0/W0 | AM26: z = pl | AO26: q = P0Q
D27: 0 | E27: 0 | F27: 0 | G27: 0 | H27: 0 | I27: 34013.96565 | J27: -334.011179 | K27: -741.4229625 | L27: -2922 | M27: 0 | T27: 0 | U27: =-Z19/AM19 -> -0.1924095972 | V27: =-Z20/AI19 -> -0.1444257088 | W27: =-Z21/AJ19 -> -0.1497327787 | Y27: 0 | Z27: =AM19/AM6 -> 0.8386380002 | AE27: 0 | AG27: 0 | AL27: 0 | AN27: 0 | AP27: 0
D28: 1 | E28: 77149.51557 | F28: 1 | G28: -1.366686369e-08 | H28: 1 | I28: -13230.80476 | J28: 165.2972107 | K28: 162.6798462 | L28: 320.5253901 | M28: 1 | Q28: E | R28: > | S28: =V27-U28 -> -0.01311938342 | T28: 1 | U28: =-SUM(V28:X28) -> -0.1313063254 | V28: =V20/AI20 -> 0.07143655123 | W28: 0.02849116132 | X28: 0.03137861281 | Y28: 1 | Z28: =(1-V28)*(1-W28)*(1-X28) -> 0.8738007127 | AE28: 1 | AF28: =Q20/S28 -> 601185.6964 | AG28: 1 | AH28: =U20/U28 -> 302286.1125 | AL28: 1 | AM28: =(AM44*AM7*AM56)^Z7 -> 601176.2861 | AN28: 1 | AO28: =P0_2*AH28 -> 601241.0269 | AP28: 1
D29: 2 | E29: 68718.60399 | F29: 2 | G29: 1.366686369e-08 | H29: 2 | I29: -11905.25659 | J29: 97.47419304 | K29: 257.4755065 | L29: 316.0666227 | M29: 2 | Q29: U + E | S29: =W27-U29 -> -0.01347561319 | T29: 2 | U29: =-SUM(V29:X29) -> -0.1362571655 | V29: 0.04857515248 | W29: 0.05200095323 | X29: 0.03568105978 | Y29: 2 | Z29: =(1-V29)*(1-W29)*(1-X29) -> 0.8697673221 | AE29: 2 | AF29: =Q21/S29 -> 521332.3229 | AG29: 2 | AH29: =U21/U29 -> 262117.8049 | AL29: 2 | AM29: =(AM45*AM8*AM57)^Z8 -> 521331.6382 | AN29: 2 | AO29: =P0_2*AH29 -> 521347.0671 | AP29: 2
D30: L | E30: 0 | F30: L | G30: -40088.86826 | H30: L | I30: -9132.404877 | J30: 66.95725008 | K30: 352.3337488 | L30: 2274.628837 | M30: L | S30: =X30-U30 -> 0.2426865581 | T30: L | U30: =-SUM(V30:W30) -> -0.804141827 | V30: =V22/AI22 -> 0.256690392 | W30: =W22/AJ22 -> 0.547451435 | X30: =(AK6+Z22)/AK22 -> -0.5614552689 | Y30: L | Z30: =(1-V30)*(1-W30) -> 0.3363836964 | AE30: L | AF30: =S22/S30 -> 67712.98642 | AG30: L | AH30: =U22/U30 -> 34069.87528 | AL30: L | AM30: =(AM46*AM9*AM58)^Z9 -> 67797.82826 | AN30: L | AO30: =P0_2*AH30 -> 67764.29994 | AP30: L
X31: (t+Y) /l
G33: 3.450056102 | I33: 254.4790488 | J33: 4.259151753 | K33: -31.07133955 | L33: 10.7917351 | S33: =S35-U33 -> -2291685.545 | U33: =-SUM(V33:X33) -> 2291685.545 | V33: =-SUM(V35:V38) -> -900759.9053 | W33: =-SUM(W35:W38) -> -860591.5977 | X33: =-SUM(X35:X38) -> -530334.0422 | AF33: =AF35-AH33 -> -4557785.064 | AH33: =-SUM(AI33:AK33) -> 4557785.064 | AI33: =-SUM(AI35:AI38) -> -1791416.702 | AJ33: =-SUM(AJ35:AJ38) -> -1711563.329 | AK33: =-SUM(AK35:AK38) -> -1054805.033
H34: B | I34: 0 | J34: 1 | K34: 2 | L34: L | S34: hQ | T34: HQ | U34: 0 | V34: 1 | W34: 2 | X34: L | AF34: hb | AG34: Hb | AH34: 0 | AI34: 1 | AJ34: 2 | AK34: L | AO34: (PU + s)/N
F35: 0 | G35: 0 | H35: 0 | I35: 34013.69635 | J35: -333.8597708 | K35: -741.3621243 | L35: -2922 | M35: 0 | R35: 0 | S35: =U35-U35 -> 0 | T35: 0 | U35: =-U33-SUM(U36:U38) -> -530334.0422 | V35: =V6*AH28 -> 302286.1125 | W35: =W6*AH29 -> 262117.8049 | X35: =X6*AH30 -> 0 | Y35: 0 | AE35: 0 | AF35: =AH35-AH35 -> 0 | AG35: 0 | AH35: =-AH33-SUM(AH36:AH38) -> -1054805.033 | AI35: =V6*AF28 -> 601185.6964 | AJ35: =W6*AF29 -> 521332.3229 | AK35: =X6*AF30 -> 0 | AL35: 0 | AP35: 0
F36: 1 | G36: -1.272996657e-08 | H36: 1 | I36: -13230.69371 | J36: 165.2287838 | K36: 162.6665136 | L36: 320.5254754 | M36: 1 | R36: 1 | S36: =S7*$AH28 -> 1209144.45 | T36: 1 | U36: =U7*$AH28 -> -906858.3376 | V36: 302286.1125 | W36: 302286.1125 | X36: 302286.1125 | Y36: 1 | AE36: 1 | AF36: =S7*$AF28 -> 2404742.786 | AG36: 1 | AH36: =U7*$AF28 -> -1803557.089 | AI36: 601185.6964 | AJ36: 601185.6964 | AK36: 601185.6964 | AL36: 1 | AO36: =(AH56+AH84)/U7 -> 601154.3314 | AP36: 1
C37: System State | F37: 2 | G37: 1.272996657e-08 | H37: 2 | I37: -11905.14396 | J37: 97.43101227 | K37: 257.4550117 | L37: 316.0655042 | M37: 2 | R37: 2 | S37: =S8*$AH29 -> 1048471.22 | T37: 2 | U37: -786353.4148 | V37: 262117.8049 | W37: 262117.8049 | X37: 262117.8049 | Y37: 2 | AE37: 2 | AF37: =S8*$AF29 -> 2085329.292 | AG37: 2 | AH37: -1563996.969 | AI37: 521332.3229 | AJ37: 521332.3229 | AK37: 521332.3229 | AL37: 2 | AO37: =(AH57+AH85)/U8 -> 521311.6918 | AP37: 2
C38: @ time = t > | F38: L | G38: -40070.37973 | H38: L | I38: -9132.337723 | J38: 66.94082291 | K38: 352.3119386 | L38: 2274.617285 | M38: L | R38: L | S38: =S9*$AH30 -> 34069.87528 | T38: L | U38: -68139.75056 | V38: 34069.87528 | W38: 34069.87528 | X38: -34069.87528 | Y38: L | AE38: L | AF38: =S9*$AF30 -> 67712.98642 | AG38: L | AH38: -135425.9728 | AI38: 67712.98642 | AJ38: 67712.98642 | AK38: -67712.98642 | AL38: L | AO38: =(AH58+AH86)/U9 -> 67774.82455 | AP38: L
T40: __ | AE40: Intersection of
G41: 3.448292533 | I41: 254.4573047 | J41: 4.233092494 | K41: -31.07652044 | L41: 10.80458628 | S41: =SUM(S36:S38) -> 2291685.545 | T41: Q | U41: =SUM(U36:U38) -> -1761351.503 | V41: =SUM(V36:V38) -> 598473.7927 | W41: =SUM(W36:W38) -> 598473.7927 | X41: =SUM(X36:X37) -> 564403.9175 | AE41: S/D Schedules > | AF41: =AF33/AF17 -> 1.000043338 | AH41: =AH33/AH17 -> 1.988979983 | AI41: =AI33/AI17 -> 866.2843465 | AJ41: =AJ33/AJ17 -> 105.2880474 | AK41: =AK33/AK17 -> 19.62082257 | AP41: 1/(N+1)
H42: C | I42: 0 | J42: 1 | K42: 2 | L42: L | U42: 0 | V42: 1 | W42: 2 | X42: L | AG42: c Hb/m | AH42: 0 | AI42: 1 | AJ42: 2 | AK42: L | AM42: p | AO42: (pZPU)
F43: 0 | G43: 0 | H43: 0 | I43: 34013.4206 | J43: -333.6668064 | K43: -741.297699 | L43: -2922 | M43: 0 | AE43: Marginal Costs of Production > | AF43: 1 | AG43: 0 | AH43: =AH35/AH19 -> 1.988918671 | AI43: 866.2040898 | AJ43: 105.2766257 | AL43: 0 | AN43: 0 | AP43: 0
F44: 1 | G44: -1.179282891e-08 | H44: 1 | I44: -13230.58018 | J44: 165.1369912 | K44: 162.6524017 | L44: 320.5255615 | M44: 1 | U44: =-GPE!E10 -> -104588.8261 | V44: =-GPE!F10 -> 100 | W44: =-GPE!G10 -> 750 | X44: =-GPE!H10 -> 8766 | AF44: =AF36/AF20 -> 1.000007167 | AG44: 1 | AH44: 1.989107236 | AI44: 866.4482528 | AJ44: 105.2982918 | AK44: =AK36/AK20 -> 19.61817351 | AL44: 1 | AM44: =AI49 -> 866.3368056 | AN44: 1 | AO44: =(AM44*AM7*AM56)^Z7 -> 601176.2861 | AP44: 1
F45: 2 | G45: 1.179282891e-08 | H45: 2 | I45: -11905.02857 | J45: 97.38026117 | K45: 257.4331303 | L45: 316.0643502 | M45: 2 | Q45: =-Q83 -> 0 | S45: =-S83 -> 0 | T45: Yt | U45: =-U83 -> -102042.6901 | V45: =Z20 -> 100.2381209 | W45: =Z21 -> 741.4802365 | X45: =AK6 -> 8766 | Z45: < Output | AE45: Values of > | AF45: =AF37/AF21 -> 0.9999933148 | AG45: 2 | AH45: 1.98908252 | AI45: 866.4063041 | AJ45: 105.2992763 | AK45: =AK37/AK21 -> 19.61796972 | AL45: 2 | AM45: =AJ49 -> 105.2935879 | AN45: 2 | AO45: =(AM45*AM8*AM57)^Z8 -> 521331.6382 | AP45: 2
F46: L | G46: -40048.62534 | H46: L | I46: -9132.269154 | J46: 66.91646149 | K46: 352.2886874 | L46: 2274.605502 | M46: L | U46: 0 | V46: 1 | W46: 2 | X46: L | AE46: Marginal Product | AF46: =AF38/AF22 -> 0.9999201768 | AG46: L | AH46: 1.987371013 | AI46: 865.5385962 | AJ46: 105.2181833 | AK46: =AK38/AK22 -> 19.57582708 | AL46: L | AM46: =-AK49 -> -19.61733958 | AN46: L | AO46: =(AM46*AM9*AM58)^Z9 -> 67797.82826 | AP46: L
S48: =AF48/AH48 -> 0.5 | U48: =GPE!E18/GPE!$E18 -> 1 | V48: =GPE!F18/GPE!$E18 -> 441.9334589 | W48: =GPE!G18/GPE!$E18 -> 53.8606403 | X48: =GPE!H18/GPE!$E18 -> 10 | AF48: 1 | AH48: =GPE!E18 -> 2 | AI48: =GPE!F18 -> 883.8669178 | AJ48: =GPE!G18 -> 107.7212806 | AK48: =GPE!H18 -> 20
G49: =3*G41/Term2 -> 1.561744098 | L49: -10282.93072 | R49: Currency > | S49: =S33/AF33 -> 0.5028068488 | T49: Y | U49: ='Econ 0'!H19 -> 1.000014693 | V49: ='Econ 0'!I19 -> 435.5683884 | W49: ='Econ 0'!J19 -> 52.93848547 | X49: ='Econ 0'!K19 -> 9.863015088 | Z49: < Values | AE49: Prices > | AF49: =P0_2*S49 -> 1.000072757 | AG49: P | AH49: =AH33/(U53+U17) -> 1.988979983 | AI49: =P0_2*V49 -> 866.3368056 | AJ49: =P0_2*W49 -> 105.2935879 | AK49: =P0_2*X49 -> 19.61733958
Q50: Value | S50: G/$ | U50: 0 | V50: 1 | W50: 2 | X50: L | Z50: G/unit | AD50: $/unit | AF50: $/$ | AH50: 0 | AI50: 1 | AJ50: 2 | AK50: L
F51: 0 | G51: =3*G43/Term2 -> 0 | H51: 0
F52: 1 | G52: =3*G44/Term2 -> -5.341014654e-09 | H52: 1
E53: Maturing > | F53: 2 | G53: =3*G45/Term2 -> 5.341014654e-09 | H53: 2 | S53: =S55-U53 -> -2290755.383 | U53: =-SUM(V53:X53) -> 2290755.383 | V53: =V$49*AI4 -> -901282.0264 | W53: =W$49*AJ4 -> -858923.5682 | X53: =X$49*AK4 -> -530549.7889 | AF53: =AF55-AH53 -> -4556266.603 | AH53: =-SUM(AI53:AK53) -> 4556266.603 | AI53: =AI$49*AI4 -> -1792631.909 | AJ53: =AJ$49*AJ4 -> -1708381.784 | AK53: =AK$49*AK4 -> -1055252.91
E54: Principal | F54: L | G54: =3*G46/Term2 -> -18138.16654 | H54: L | S54: ¡ | T54: YU | U54: 0 | V54: 1 | W54: 2 | X54: L | AF54: u | AG54: PU | AH54: 0 | AI54: 1 | AJ54: 2 | AK54: L | AM54: PU
R55: 0 | S55: =U55-U55 -> 0 | T55: 0 | U55: =-U53-SUM(U56:U58) -> -632409.1149 | V55: =V$49*AI6 -> 345965.1614 | W55: 301405.4641 | X55: 86459.19026 | Y55: 0 | AF55: =AH55-AH55 -> 0 | AG55: 0 | AH55: =-AH53-SUM(AH56:AH58) -> -1257849.07 | AI55: =AI$49*AI6 -> 688117.7808 | AJ55: 599489.4347 | AK55: 171965.5988 | AL55: 0 | AN55: 0
R56: 1 | S56: =V55-U56 -> 1212989.954 | T56: 1 | U56: =-SUM(V56:X56) -> -867024.7923 | V56: 280629.9032 | W56: 293633.4864 | X56: 292761.4027 | Y56: 1 | Z56: Interaction | AE56: Interaction | AF56: =AI55-AH56 -> 2412612.737 | AG56: 1 | AH56: =-SUM(AI56:AK56) -> -1724494.956 | AI56: 558167.2599 | AJ56: 584031.1268 | AK56: 582296.5697 | AL56: 1 | AM56: =AI56*AJ56*AK56 -> 1.898211432e+17 | AN56: 1
R57: 2 | S57: =W55-U57 -> 1051980.675 | T57: 2 | U57: =-SUM(V57:X57) -> -750575.2112 | V57: 249358.3359 | W57: 248466.9786 | X57: 252749.8967 | Y57: 2 | Z57: < of Utility | AE57: of Utility > | AF57: =AJ55-AH57 -> 2092368.505 | AG57: 2 | AH57: =-SUM(AI57:AK57) -> -1492879.071 | AI57: 495968.7387 | AJ57: 494195.8468 | AK57: 502714.4851 | AL57: 2 | AM57: =AI57*AJ57*AK57 -> 1.232181812e+17 | AN57: 2
R58: L | S58: =X55+X58-U58 -> 25784.75437 | T58: L | U58: =-SUM(V58:W58) -> -40746.26493 | V58: 25328.62588 | W58: 15417.63905 | X58: -101420.7008 | Y58: L | Z58: with Values | AE58: with Prices | AF58: =AK55+AK58-AH58 -> 51285.3603 | AG58: L | AH58: =-SUM(AI58:AJ58) -> -81043.50531 | AI58: 50378.12987 | AJ58: 30665.37545 | AK58: -201723.7438 | AL58: L | AM58: =AI58*AJ58 -> 1544864267 | AN58: L
AH60: - PU
Q62: =IF(AF62/AF$49<AF53,AF62/AF$49-AF53,0) -> -1231.331074 | S62: =IF(AF62/AF$49>AF53,AF62/AF$49-AF53,0) -> 0 | U62: =AH62/AH$49-U53 -> 785.7909506 | V62: =AI62/AI$49-AI4 -> 1.327278923 | W62: =AJ62/AJ$49-AJ4 -> -30.91932728 | X62: =AK62/AK$49-AK4 -> 27.67010531 | AF62: =AF64-AH62 -> -4557829.525 | AH62: =-SUM(AI62:AK62) -> 4557829.525 | AI62: =-SUM(AI64:AI67) -> -1791482.039 | AJ62: =-SUM(AJ64:AJ67) -> -1711637.391 | AK62: =-SUM(AK64:AK67) -> -1054710.096
R63: -f | T63: Q | U63: 0 | V63: 1 | W63: 2 | X63: L | AF63: hz | AG63: Hz | AH63: 0 | AI63: 1 | AJ63: 2 | AK63: L
P64: 0 | Q64: =IF(AF64/AF$49<AF55,AF64/AF$49-AF55,0) -> 0 | R64: 0 | S64: =IF(AF64/AF$49>AF55,AF64/AF$49-AF55,0) -> 0 | T64: 0 | U64: =AH64/AH$49-U55 -> 102132.2368 | V64: =AI64/AI$49-AI6 -> -100.3553053 | W64: -742.284484 | X64: -8766 | Y64: 0 | AE64: 0 | AF64: =AH64-AH64 -> 0 | AG64: 0 | AH64: =-AH62-SUM(AH65:AH67) -> -1054710.096 | AI64: =V6*$AM28 -> 601176.2861 | AJ64: =W6*$AM29 -> 521331.6382 | AK64: =X6*$AM30 -> 0 | AL64: 0
P65: 1 | Q65: =AF65/AF$49-AF56 -> -8082.539997 | R65: 1 | T65: 1 | U65: =AH65/AH$49-U56 -> -39735.89607 | V65: 49.64469465 | W65: 162.8319414 | X65: 962.3994263 | Y65: 1 | Z65: Optimal | AE65: 1 | AF65: =S7*$AM28 -> 2404705.144 | AG65: 1 | AH65: =U7*$AM28 -> -1803528.858 | AI65: 601176.2861 | AJ65: 601176.2861 | AK65: 601176.2861 | AL65: 1
P66: 2 | Q66: =AF66/AF$49-AF57 -> -7193.664452 | R66: 2 | T66: 2 | U66: =AH66/AH$49-U57 -> -35754.93193 | V66: 29.27602677 | W66: 257.715516 | X66: 949.0151793 | Y66: 2 | Z66: < Rates of | AE66: 2 | AF66: =S8*$AM29 -> 2085326.553 | AG66: 2 | AH66: -1563994.915 | AI66: 521331.6382 | AJ66: 521331.6382 | AK66: 521331.6382 | AL66: 2
P67: L | Q67: 0 | R67: L | S67: =AF67/AF$49-AF58 -> 16507.53552 | T67: L | U67: =AH67/AH$49-U58 -> -27427.19971 | V67: 20.10730501 | W67: 352.6563539 | X67: 6826.915289 | Y67: L | Z67: Change | AE67: L | AF67: =S9*$AM30 -> 67797.82826 | AG67: L | AH67: -135595.6565 | AI67: 67797.82826 | AJ67: 67797.82826 | AK67: -67797.82826 | AL67: L
Z69: Domestic
Q70: =SUM(Q65:Q67) -> -15276.20445 | S70: =SUM(S65:S67) -> 16507.53552 | T70: D | U70: =SUM(U65:U67) -> -102918.0277 | V70: =SUM(V65:V67) -> 99.02802643 | W70: =SUM(W65:W67) -> 773.2038113 | X70: =SUM(X65:X66) -> 1911.414606 | Z70: < Demand
U71: 0 | V71: 1 | W71: 2 | X71: L
Z72: Domestic
Q73: =Q45+Q14 -> -16231.98972 | S73: =S45+S14 -> 16431.6172 | T73: S | U73: =U45+U14 -> -102042.6901 | V73: =V45+V14 -> 100.2381209 | W73: =W45+W14 -> 741.4802365 | X73: =X45+Z22+X14 -> 1942.079527 | Z73: < Supply | AD73: =-AH73 -> 0 | AF73: 0 | AH73: =-SUM(AI73:AK73) -> 0
U74: 0 | V74: 1 | W74: 2 | X74: L | AE74: Transfers | AG74: FI | AH74: 0 | AI74: 1 | AJ74: 2 | AK74: L
G75: T | AC75: 0 | AD75: =AH75-AH75 -> 0 | AE75: 0 | AF75: 0 | AG75: 0 | AH75: =-SUM(AI75:AK75) -> 0 | AI75: 0 | AJ75: 0 | AK75: 0 | AL75: 0
E76: Investment | F76: > | G76: =Term -> 6.623926169 | Z76: Demand | AC76: 1 | AD76: =AI75-AH76 -> -2.227129317 | AE76: 1 | AF76: -1.272988639e-09 | AG76: 1 | AH76: =-SUM(AI76:AK76) -> 2.227129317 | AI76: 0 | AJ76: =(AF45-AF44)*(V0-Iota)*(E20+E21) -> -2.227129317 | AL76: 1 | AM76: Equity
E77: Term | G77: =ITerm -> 7 | T77: F | U77: ='Econ 0'!U20 -> 0.9989137175 | V77: ='Econ 0'!V20 -> 0.9991860121 | W77: ='Econ 0'!W20 -> 0.9991428526 | X77: ='Econ 0'!X20 -> 0.9991440932 | Z77: < Factors | AC77: 2 | AD77: =AJ75-AH77 -> 2.227129317 | AE77: 2 | AF77: 1.272988639e-09 | AG77: 2 | AH77: =-SUM(AI77:AK77) -> -2.227129317 | AI77: =-AJ76 -> 2.227129317 | AJ77: 0 | AL77: 2 | AM77: < Markets
U78: 0 | V78: 1 | W78: 2 | X78: L | AC78: L | AD78: =AK75-AH78 -> 0 | AE78: L | AF78: 0 | AG78: L | AH78: =-SUM(AI78:AK78) -> 0 | AL78: L
R80: International Settlements | Z80: imports ( - ) | AE80: Trade Balance
E81: =P0_2*'Econ 0'!M50 -> 12909.16255 | G81: =P0_2*'Econ 0'!O50 -> 3.448117396 | I81: =I25+DT*(U81-I$9*I25*3) -> 254.5009551 | J81: =J25+DT*(V81-J$9*J25*3) -> 4.282584582 | K81: =K25+DT*(W81-K$9*K25*3) -> -31.06608586 | L81: =L25+DT*(X81-L$9*L25*3) -> 10.77878447 | Q81: =AD81-Q17 -> -199.1336276 | S81: =AF81-S17 -> 1.414414748 | U81: ='Econ 0'!U36 -> 763.5395922 | V81: ='Econ 0'!V36 -> 1.290702115 | W81: ='Econ 0'!W36 -> -31.06082511 | X81: ='Econ 0'!X36 -> 32.30091441 | Z81: < eXports ( + ) | AD81: =IF(AH81>0,-AH81,0) -> -1518.664965 | AF81: =IF(AH81<0,-AH81,0) -> 0 | AH81: =P0_2*U81 -> 1518.664965 | AI81: =AI$49*V81 -> 1118.182748 | AJ81: =AJ$49*W81 -> -3270.505719 | AK81: =AK$49*X81 -> 633.6580067
H82: A | I82: 0 | J82: 1 | K82: 2 | L82: L | R82: r | T82: R | U82: 0 | V82: 1 | W82: 2 | X82: L | AE82: - NCF | AG82: PR | AH82: 0 | AI82: 1 | AJ82: 2 | AK82: L
D83: 0 | E83: =E27+DT*(Q83-Iota2*E19) -> 0 | F83: 0 | G83: =G27+DT*(S83-Nu_2*G19+G51-3*G27/Term2) -> 0 | H83: 0 | I83: =I27+DT*(U83-I$9*I27*3) -> 34013.97358 | J83: -334.0115266 | K83: -741.4235353 | L83: -2922 | M83: 0 | P83: 0 | Q83: 0 | R83: 0 | S83: =AF75+AF83 -> 0 | T83: 0 | U83: =-U81-SUM(U84:U86) -> 102042.6901 | V83: =-Z20 -> -100.2381209 | W83: =-Z21 -> -741.4802365 | X83: =-AK6 -> -8766 | Y83: 0 | Z83: < Output ( - ) | AC83: 0 | AD83: 0 | AE83: 0 | AF83: 0 | AG83: 0 | AH83: =-SUM(AI83:AK83) -> 203011.5215 | AI83: =-AI81-SUM(AI84:AI86) -> -86839.97349 | AJ83: =-AJ81-SUM(AJ84:AJ86) -> -78073.11448 | AK83: =-AK81-SUM(AK84:AK86) -> -38098.43358 | AL83: 0
D84: 1 | E84: =E28+DT*(Q84-Iota2*E20) -> 77149.6458 | F84: 1 | G84: =G28+DT*(S84-Nu_2*G20+G52-3*G28/Term2) -> -1.3671106e-08 | H84: 1 | I84: -13230.80793 | J84: 165.2973619 | K84: 162.6799714 | L84: 320.5253855 | M84: 1 | P84: 1 | Q84: =AD76+AD84 -> -7874.162776 | R84: 1 | S84: =AF76+AF84 -> -1.272988639e-09 | T84: 1 | U84: =U$77*U65 -> -39692.73166 | V84: 49.60428447 | W84: 162.6923704 | X84: 961.5757021 | Y84: 1 | AC84: 1 | AD84: =AI83-AH84 -> -7871.935647 | AE84: 1 | AF84: 0 | AG84: 1 | AH84: =-SUM(AI84:AK84) -> -78968.03784 | AI84: =AI$49*V84 -> 42974.01735 | AJ84: 17130.4634 | AK84: 18863.55708 | AL84: 1 | AM84: Monetary
D85: 2 | E85: =E29+DT*(Q85-Iota2*E21) -> 68718.7079 | F85: 2 | G85: =G29+DT*(S85-Nu_2*G21+G53-3*G29/Term2) -> 1.3671106e-08 | H85: 2 | I85: -11905.25981 | J85: 97.47429243 | K85: 257.4756976 | L85: 316.0666532 | M85: 2 | P85: 2 | Q85: =AD77+AD85 -> -7014.882473 | R85: 2 | S85: 1.272988639e-09 | T85: 2 | U85: -35716.09197 | V85: 29.25219644 | W85: 257.4946158 | X85: 948.2029107 | Y85: 2 | Z85: < Rates of | AC85: 2 | AD85: =AJ83-AH85 -> -7017.109602 | AE85: 2 | AF85: 0 | AG85: 2 | AH85: =-SUM(AI85:AK85) -> -71056.00488 | AI85: 25342.25442 | AJ85: 27112.53197 | AK85: 18601.21849 | AL85: 2 | AM85: < Transactions
D86: L | E86: =E30+DT*(Q86-Iota2*E22) -> 0 | F86: L | G86: =G30+DT*(S86-Nu_2*G22+G54-3*G30/Term2) -> -40088.93922 | H86: L | I86: -9132.406791 | J86: 66.95728771 | K86: 352.3339521 | L86: 2274.629177 | M86: L | P86: L | Q86: 0 | R86: L | S86: =AF78+AF86 -> 16407.71021 | T86: L | U86: =U$77*U67 -> -27397.40602 | V86: =V$77*V67 -> 20.09093791 | W86: =W$77*W67 -> 352.3540755 | X86: =-X81-SUM(X83:X85) -> 6823.920473 | Y86: L | Z86: Change | AC86: L | AD86: 0 | AE86: L | AF86: =AK83-AH86 -> 16407.71021 | AG86: L | AH86: =-SUM(AI86:AK86) -> -54506.14379 | AI86: =AI$49*V86 -> 17405.51897 | AJ86: =AJ$49*W86 -> 37100.62482 | AK86: 0 | AL86: L
Q87: Debt Service | S87: Passive Income | AD87: Cost of Sales | AF87: Consumption | AH87: - s
AD88: Minus Sales | AF88: Minus Wages
G89: =P0_2*'Econ 0'!O55 -> 3.450047407 | I89: =I33+DT*I$9*3*(I25-I33) -> 254.4796946 | J89: =J33+DT*J$9*3*(J25-J33) -> 4.259221873 | K89: =K33+DT*K$9*3*(K25-K33) -> -31.07128754 | L89: =L33+DT*L$9*3*(L25-L33) -> 10.79135754 | Q89: =GPE!A8 -> 0 | S89: =GPE!C8 -> -0.2886111448 | U89: =GPE!E8 -> 0 | V89: =GPE!F8 -> 0 | W89: =GPE!G8 -> 0 | X89: =GPE!H8 -> 0
H90: B | I90: 0 | J90: 1 | K90: 2 | L90: L | R90: r | T90: R | U90: 0 | V90: 1 | W90: 2 | X90: L
F91: 0 | G91: =G35+DT*3*(G27-G35)/Term2 -> 0 | H91: 0 | I91: =I35+DT*I$9*3*(I27-I35) -> 34013.70443 | J91: -333.860225 | K91: -741.3627327 | L91: -2922 | M91: 0 | P91: 0 | Q91: =GPE!C10 -> 0 | R91: 0 | S91: =GPE!A10 -> 0 | T91: 0 | U91: =GPE!E10 -> 104588.8261 | V91: =GPE!F10 -> -100 | W91: =GPE!G10 -> -750 | X91: =GPE!H10 -> -8766 | Y91: 0
F92: 1 | G92: =G36+DT*3*(G28-G36)/Term2 -> -1.273420981e-08 | H92: 1 | I92: -13230.69704 | J92: 165.2289891 | K92: 162.6666469 | L92: 320.5254729 | M92: 1 | P92: 1 | Q92: =GPE!C11 -> -8035.153798 | R92: 1 | S92: =GPE!A11 -> 0 | T92: 1 | U92: =GPE!E11 -> -40175.76899 | V92: =GPE!F11 -> 50 | W92: =GPE!G11 -> 150 | X92: =GPE!H11 -> 1000 | Y92: 1
F93: 2 | G93: =G37+DT*3*(G29-G37)/Term2 -> 1.273420981e-08 | H93: 2 | I93: -11905.14734 | J93: 97.43114181 | K93: 257.4552166 | L93: 316.0655378 | M93: 2 | P93: 2 | Q93: =GPE!C12 -> -7344.632768 | R93: 2 | S93: =GPE!A12 -> 0 | T93: 2 | U93: =GPE!E12 -> -36723.16384 | V93: =GPE!F12 -> 30 | W93: =GPE!G12 -> 250 | X93: =GPE!H12 -> 1000 | Y93: 2
F94: L | G94: =G38+DT*3*(G30-G38)/Term2 -> -40070.46347 | H94: L | I94: -9132.339737 | J94: 66.94087219 | K94: 352.3121567 | L94: 2274.617632 | M94: L | P94: L | Q94: =GPE!A13 -> 0 | R94: L | S94: =GPE!C13 -> 15379.78657 | T94: L | U94: =GPE!E13 -> -27689.89328 | V94: =GPE!F13 -> 20 | W94: =GPE!G13 -> 350 | X94: =GPE!H13 -> 6766 | Y94: L
C95: System State
C96: @ time = t + d >
G97: =P0_2*'Econ 0'!O60 -> 3.44830061 | I97: =I41+DT*I$9*3*(I33-I41) -> 254.457957 | J97: =J41+DT*J$9*3*(J33-J41) -> 4.233170671 | K97: =K41+DT*K$9*3*(K33-K41) -> -31.07646863 | L97: =L41+DT*L$9*3*(L33-L41) -> 10.80420074 | S97: u
H98: C | I98: 0 | J98: 1 | K98: 2 | L98: L | S98: (h/w-1)
F99: 0 | G99: =G43+DT*3*(G35-G43)/Term2 -> 0 | H99: 0 | I99: =I43+DT*I$9*3*(I35-I43) -> 34013.42887 | J99: -333.6673853 | K99: -741.2983432 | L99: -2922 | M99: 0 | T99: 0
F100: 1 | G100: =G44+DT*3*(G36-G44)/Term2 -> -1.179707324e-08 | H100: 1 | I100: -13230.58358 | J100: 165.1372666 | K100: 162.6525428 | L100: 320.525559 | M100: 1 | S100: =AF56/(S7/S28-1) -> -7887.129316 | T100: 1
F101: 2 | G101: =G45+DT*3*(G37-G45)/Term2 -> 1.179707324e-08 | H101: 2 | I101: -11905.03203 | J101: 97.38041342 | K101: 257.4333492 | L101: 316.0643848 | M101: 2 | S101: =AF57/(S8/S29-1) -> -7025.319536 | T101: 2
F102: L | G102: =G46+DT*3*(G38-G46)/Term2 -> -40048.72387 | H102: L | I102: -9132.271212 | J102: 66.91653458 | K102: 352.2889199 | L102: 2274.605856 | M102: L | S102: =AF58/(S9/S30-1) -> 16434.76385 | T102: L
L105: =L49+DT*S105 -> -10282.92939 | S105: =(S102-S22)/AK49/(1-Z30) -> 0.1330603553 | T105: < | U105: ∂ZL/∂t
L106: -10219.74286

Sheet Series
B4: BUFFER ->
C5: =TicToc -> 30.00059128 | D5: ='Econ 1'!W45 -> 825.6115531 | E5: ='Econ 1'!W70 -> 795.2323594 | F5: ='Econ 2'!W45 -> 741.4802365 | G5: ='Econ 2'!W70 -> 773.2038113 | H5: =-Iota -> 0.1022324716 | I5: =-Iota1 -> 0.1022324716 | J5: =-Iota2 -> 0.1022324716 | K5: ='Econ 1'!S49 -> 0.4726367805 | L5: ='Econ 2'!S49 -> 0.5028068488 | M5: =-IState!J55 -> 10219.74286 | N5: =-Zl_1 -> 10212.09431 | O5: =-Zl_2 -> 10282.93072 | P5: =GPE!H13 -> 6766 | Q5: ='Econ 1'!X22 -> 6763.22537 | R5: ='Econ 2'!X22 -> 6823.851625 | S5: ='Econ 1'!AJ49 -> 111.9956595 | T5: ='Econ 1'!AJ43 -> 111.9909303 | U5: ='Econ 1'!AJ44 -> 111.995791 | V5: ='Econ 1'!AJ46 -> 111.993861 | W5: =GPE!G$18 -> 107.7212806 | X5: ='Econ 1'!AD81+'Econ 1'!AF81 -> 1615.329933 | Y5: ='Econ 2'!AD81+'Econ 2'!AF81 -> -1518.664965 | Z5: ='Econ 1'!Q17+'Econ 1'!S17 -> 1504.770877 | AA5: ='Econ 2'!Q17+'Econ 2'!S17 -> -1320.945752
A7: BOX: | C7: year | D7: S1 | E7: D1 | F7: S2 | G7: D2 | H7: i Gbl | I7: i E1 | J7: i E2 | K7: 1/P01 | L7: 1/P02 | M7: -ZL | N7: -ZL1 | O7: -ZL2 | P7: -YL | Q7: -YL1 | R7: -YL2 | S7: P2 | T7: MC2 | U7: VMP1 | V7: VMPL | W7: P* | X7: r1 | Y7: r2 | Z7: e1 | AA7: e2
A8: 0 | C8: 0 | D8: 764.0286566 | E8: 846.4082834 | F8: 750 | G8: 754.4586324 | H8: 0.1045834294 | I8: 0.1045834294 | J8: 0.1045834294 | K8: 0.4779866009 | L8: 0.4779866009 | M8: 10219.74286 | N8: 10219.74286 | O8: 10219.74286 | P8: 6766 | Q8: 6766 | R8: 6766 | S8: 112.3617177 | T8: 110.5900366 | U8: 112.6586094 | V8: 114.2562267 | W8: 107.7212806 | X8: -13621.68055 | Y8: 13655.246 | Z8: 0 | AA8: 0
A9: =1+A8 -> 1 | C9: 1.009999394 | D9: 812.4917431 | E9: 819.4668552 | F9: 736.2513697 | G9: 772.2321747 | H9: 0.1007294973 | I9: 0.1007294973 | J9: 0.1007294973 | K9: 0.5094229298 | L9: 0.4870831633 | M9: 10219.74286 | N9: 10243.46313 | O9: 10244.66503 | P9: 6766 | Q9: 6761.810119 | R9: 6759.032939 | S9: 107.4908413 | T9: 107.3623842 | U9: 107.7419432 | V9: 109.5917224 | W9: 107.7212806 | X9: -2761.660797 | Y9: 2781.906191 | Z9: -643.2190889 | AA9: 855.2827629
A10: 2 | C10: 2.01999855 | D10: 818.3780837 | E10: 809.7375235 | F10: 736.4747187 | G10: 771.7320082 | H10: 0.1017907912 | I10: 0.1017907912 | J10: 0.1017907912 | K10: 0.4952186621 | L10: 0.4879512931 | M10: 10219.74286 | N10: 10254.45216 | O10: 10280.75125 | P10: 6766 | Q10: 6768.852446 | R10: 6764.105819 | S10: 109.0975525 | T10: 109.2791512 | U10: 109.0477743 | V10: 108.6564974 | W10: 107.7212806 | X10: -1009.86351 | Y10: 1001.070001 | Z10: -765.214542 | AA10: 972.0214392
A11: 3 | C11: 3.029997587 | D11: 820.6871498 | E11: 804.82682 | F11: 737.117813 | G11: 772.2324127 | H11: 0.1022627733 | I11: 0.1022627733 | J11: 0.1022627733 | K11: 0.4867453688 | L11: 0.4912660239 | M11: 10219.74286 | N11: 10244.76317 | O11: 10305.09111 | P11: 6766 | Q11: 6774.822751 | R11: 6781.283457 | S11: 110.1357077 | T11: 110.2652807 | U11: 110.091188 | V11: 108.8369634 | W11: 107.7212806 | X11: -65.5001817 | Y11: 64.03527764 | Z11: -781.334063 | AA11: 973.6091766
A12: 4 | C12: 4.039997578 | D12: 822.03457 | E12: 801.7831927 | F12: 737.6849806 | G12: 772.9118082 | H12: 0.102344373 | I12: 0.102344373 | J12: 0.102344373 | K12: 0.4828911688 | L12: 0.4946537257 | M12: 10219.74286 | N12: 10231.83072 | O12: 10314.72435 | P12: 6766 | Q12: 6773.691869 | R12: 6798.080857 | S12: 110.6110156 | T12: 110.6986838 | U12: 110.5683573 | V12: 109.6147996 | W12: 107.7212806 | X12: 617.4611103 | Y12: -597.797014 | Z12: -754.9156068 | AA12: 928.6603064 | AE12: b2 | AF12: Z2 | AG12: b1-2-L | AH12: U1-2-L
A13: 5 | C13: 5.050020695 | D13: 822.8853293 | E13: 800.0584629 | F13: 738.2946413 | G13: 773.2833878 | H13: 0.1023429781 | I13: 0.1023429781 | J13: 0.1023429781 | K13: 0.4805716482 | L13: 0.4972440876 | M13: 10219.74286 | N13: 10223.04243 | O13: 10314.89979 | P13: 6766 | Q13: 6769.6521 | R13: 6809.518677 | S13: 110.9067458 | T13: 110.9625217 | U13: 110.8645028 | V13: 110.4109538 | W13: 107.7212806 | X13: 1007.812988 | Y13: -968.6699451 | Z13: -671.495178 | AA13: 813.5480828 | AE13: ='Econ 1'!AF29 -> 557086.3898 | AF13: ='Econ 1'!AM8 -> 5800 | AG13: ='Econ 1'!AF28+'Econ 1'!AF29+'Econ 1'!AF30 -> 1268462.09 | AH13: ='Econ 1'!AJ7+'Econ 1'!AJ8+'Econ 1'!AJ9 -> 10531.43283
A14: 6 | C14: 6.060043812 | D14: 823.478735 | E14: 799.0615088 | F14: 738.8201089 | G14: 773.4142519 | H14: 0.1023361785 | I14: 0.1023361785 | J14: 0.1023361785 | K14: 0.4789026335 | L14: 0.4990380551 | M14: 10219.74286 | N14: 10218.47923 | O14: 10310.97279 | P14: 6766 | Q14: 6766.129525 | R14: 6815.883819 | S14: 111.1311696 | T14: 111.1645854 | U14: 111.0932201 | V14: 110.9608535 | W14: 107.7212806 | X14: 1212.890913 | Y14: -1159.482845 | Z14: -557.320393 | AA14: 662.1532229 | AE14: INITIAL | AF14: INITIAL
A15: 7 | C15: 7.070066929 | D15: 823.9185081 | E15: 798.4042016 | F15: 739.2082998 | G15: 773.4346341 | H15: 0.10233423 | I15: 0.10233423 | J15: 0.10233423 | K15: 0.4776229598 | L15: 0.5002622137 | M15: 10219.74286 | N15: 10216.2878 | O15: 10306.18358 | P15: 6766 | Q15: 6764.02821 | R15: 6818.964977 | S15: 111.3120375 | T15: 111.3302426 | U15: 111.281356 | V15: 111.28428 | W15: 107.7212806 | X15: 1327.353372 | Y15: -1263.796399 | Z15: -426.6609562 | AA15: 492.2534024 | AD15: Q1 | AE15: s | AF15: d | AG15: S | AH15: D
A16: 8 | C16: 8.080089569 | D16: 824.2569239 | E16: 797.9033849 | F16: 739.4784648 | G16: 773.4213268 | H16: 0.1023338238 | I16: 0.1023338238 | J16: 0.1023338238 | K16: 0.4766277437 | L16: 0.5011152966 | M16: 10219.74286 | N16: 10215.09433 | O16: 10301.91917 | P16: 6766 | Q16: 6763.002631 | R16: 6820.332389 | S16: 111.4573866 | T16: 111.4649724 | U16: 111.4345409 | V16: 111.4774328 | W16: 107.7212806 | X16: 1402.956962 | Y16: -1331.778794 | Z16: -285.9986641 | AA16: 311.4995114 | AD16: 700 | AE16: 106.6426664 | AF16: 108.2008333 | AG16: =$AE$13/($AF$13-AD16) -> 109.2326255 | AH16: =$AG$13/($AH$13+AD16) -> 112.9385813
A17: 9 | C17: 9.090112686 | D17: 824.522701 | E17: 797.4946283 | F17: 739.6702127 | G17: 773.401396 | H17: 0.1023329574 | I17: 0.1023329574 | J17: 0.1023329574 | K17: 0.4758476964 | L17: 0.5017168288 | M17: 10219.74286 | N17: 10214.30561 | O17: 10298.50672 | P17: 6766 | Q17: 6762.538632 | R17: 6820.943923 | S17: 111.5729783 | T17: 111.5729504 | U17: 111.5569135 | V17: 111.6086937 | W17: 107.7212806 | X17: 1459.857776 | Y17: -1382.705456 | Z17: -138.2459171 | AA17: 123.0737033 | AD17: =10+AD16 -> 710 | AE17: 106.8566577 | AF17: 108.1045815 | AG17: 109.4472279 | AH17: 112.8381149
A18: 10 | C18: 10.1001358 | D18: 824.7327118 | E18: 797.1583714 | F18: 739.8157858 | G18: 773.3796974 | H18: 0.1023314449 | I18: 0.1023314449 | J18: 0.1023314449 | K18: 0.4752313902 | L18: 0.5021357395 | M18: 10219.74286 | N18: 10213.75036 | O18: 10295.84152 | P18: 6766 | Q18: 6762.324434 | R18: 6821.264531 | S18: 111.6643765 | T18: 111.6589242 | U18: 111.653523 | V18: 111.7075793 | W18: 107.7212806 | X18: 1503.850396 | Y18: -1422.015377 | Z18: 21.54178774 | AA18: -52.59114695 | AD18: =10+AD17 -> 720 | AE18: 107.0715096 | AF18: 108.0085008 | AG18: 109.6626752 | AH18: 112.7378272
A19: 11 | C19: 11.11015892 | D19: 824.8983945 | E19: 796.8838737 | F19: 739.9353848 | G19: 773.3561665 | H19: 0.1023293682 | I19: 0.1023293682 | J19: 0.1023293682 | K19: 0.474742655 | L19: 0.5024194004 | M19: 10219.74286 | N19: 10213.38081 | O19: 10293.72683 | P19: 6766 | Q19: 6762.231984 | R19: 6821.478198 | S19: 111.7362477 | T19: 111.7270923 | U19: 111.7291633 | V19: 111.7832201 | W19: 107.7212806 | X19: 1536.847181 | Y19: -1451.431327 | Z19: 215.690237 | AA19: -188.6084485 | AD19: 730 | AE19: 107.2872272 | AF19: 107.9125907 | AG19: 109.8789723 | AH19: 112.6377175
A20: 12 | C20: 12.12018204 | D20: 825.0287785 | E20: 796.6597147 | F20: 740.0407403 | G20: 773.3313843 | H20: 0.102326595 | I20: 0.102326595 | J20: 0.102326595 | K20: 0.474355609 | L20: 0.5026054004 | M20: 10219.74286 | N20: 10213.1568 | O20: 10292.00268 | P20: 6766 | Q20: 6762.217419 | R20: 6821.644771 | S20: 111.7922765 | T20: 111.7807802 | U20: 111.7878421 | V20: 111.8391093 | W20: 107.7212806 | X20: 1560.600006 | Y20: -1472.519044 | Z20: 388.3833105 | AA20: -313.7076548 | AD20: 740 | AE20: 107.5038158 | AF20: 107.8168508 | AG20: 110.0961245 | AH20: 112.5377855
A21: 13 | C21: 13.13020515 | D21: 825.1314383 | E21: 796.4744794 | F21: 740.1387297 | G21: 773.3067853 | H21: 0.102322946 | I21: 0.102322946 | J21: 0.102322946 | K21: 0.474049978 | L21: 0.5027235678 | M21: 10219.74286 | N21: 10213.03158 | O21: 10290.56661 | P21: 6766 | Q21: 6762.259125 | R21: 6821.782923 | S21: 111.8354956 | T21: 111.8227001 | U21: 111.8328948 | V21: 111.8786807 | W21: 107.7212806 | X21: 1577.139164 | Y21: -1487.111134 | Z21: 541.2992324 | AA21: -428.2505606 | AD21: 750 | AE21: 107.7212806 | AF21: 107.7212806 | AG21: 110.3141366 | AH21: 112.4380306
A22: 14 | C22: 14.14022827 | D22: 825.2126433 | E22: 796.3186082 | F22: 740.2333656 | G22: 773.2838112 | H22: 0.1023183746 | I22: 0.1023183746 | J22: 0.1023183746 | K22: 0.4738087459 | L22: 0.5027961005 | M22: 10219.74286 | N22: 10212.96318 | O22: 10289.35743 | P22: 6766 | Q22: 6762.337951 | R22: 6821.902579 | S22: 111.8685299 | T22: 111.8551967 | U22: 111.8671751 | V22: 111.9058343 | W22: 107.7212806 | X22: 1588.398533 | Y22: -1496.958815 | Z22: 676.1747061 | AA22: -532.7289941 | AD22: 760 | AE22: 107.939627 | AF22: 107.6258797 | AG22: 110.5330139 | AH22: 112.3384524
A23: 15 | C23: 15.15025139 | D23: 825.2774106 | E23: 796.1849721 | F23: 740.3267759 | G23: 773.2634374 | H23: 0.1023129908 | I23: 0.1023129908 | J23: 0.1023129908 | K23: 0.473617525 | L23: 0.5028385323 | M23: 10219.74286 | N23: 10212.92149 | O23: 10288.33614 | P23: 6766 | Q23: 6762.436308 | R23: 6822.012757 | S23: 111.8936592 | T23: 111.88032 | U23: 111.8931277 | V23: 111.9242048 | W23: 107.7212806 | X23: 1595.953725 | Y23: -1503.488021 | Z23: 794.7613836 | AA23: -627.7381645 | AD23: 770 | AE23: 108.1588604 | AF23: 107.5306476 | AG23: 110.7527614 | AH23: 112.2390505
A24: 16 | C24: 16.16027451 | D24: 825.3296478 | E24: 796.0685114 | F24: 740.4198143 | G24: 773.2461228 | H24: 0.1023069954 | I24: 0.1023069954 | J24: 0.1023069954 | K24: 0.4734644926 | L24: 0.5028613456 | M24: 10219.74286 | N24: 10212.88816 | O24: 10287.4738 | P24: 6766 | Q24: 6762.540556 | R24: 6822.121266 | S24: 111.9128009 | T24: 111.8998094 | U24: 111.9127906 | V24: 111.936687 | W24: 107.7212806 | X24: 1600.979541 | Y24: -1507.759649 | Z24: 898.7693924 | AA24: -713.9355444 | AD24: 780 | AE24: 108.3789861 | AF24: 107.435584 | AG24: 110.9733844 | AH24: 112.1398243
A25: 17 | C25: 17.17029762 | D25: 825.3723526 | E25: 795.9656367 | F25: 740.5125357 | G25: 773.2319391 | H25: 0.1023006109 | I25: 0.1023006109 | J25: 0.1023006109 | K25: 0.4733402729 | L25: 0.5028715319 | M25: 10219.74286 | N25: 10212.85333 | O25: 10286.74613 | P25: 6766 | Q25: 6762.641761 | R25: 6822.233488 | S25: 111.9275008 | T25: 111.9150788 | U25: 111.9277994 | V25: 111.9453763 | W25: 107.7212806 | X25: 1604.315088 | Y25: -1510.529532 | Z25: 989.8211433 | AA25: -792.0030313 | AD25: 790 | AE25: 108.6000097 | AF25: 107.3406882 | AG25: 111.1948882 | AH25: 112.0407734
A26: 18 | C26: 18.18032074 | D26: 825.4078069 | E26: 795.8737444 | F26: 740.6045615 | G26: 773.2207175 | H26: 0.1022940388 | I26: 0.1022940388 | J26: 0.1022940388 | K26: 0.4732376475 | L26: 0.5028737608 | M26: 10219.74286 | N26: 10212.81255 | O26: 10286.13169 | P26: 6766 | Q26: 6762.734945 | R26: 6822.352115 | S26: 111.938959 | T26: 111.9272327 | U26: 111.9394211 | V26: 111.9517114 | W26: 107.7212806 | X26: 1606.547578 | Y26: -1512.325355 | Z26: 1069.422158 | AA26: -862.6187199 | AD26: 800 | AE26: 108.8219366 | AF26: 107.24596 | AG26: 111.417278 | AH26: 111.9418973
A27: 19 | C27: 19.19034386 | D27: 825.4377378 | E27: 795.7909012 | F27: 740.6953307 | G27: 773.2121599 | H27: 0.1022874435 | I27: 0.1022874435 | J27: 0.1022874435 | K27: 0.4731511784 | L27: 0.5028711558 | M27: 10219.74286 | N27: 10212.76444 | O27: 10285.61158 | P27: 6766 | Q27: 6762.817888 | R27: 6822.477651 | S27: 111.9480792 | T27: 111.9371081 | U27: 111.9486089 | V27: 111.9566486 | W27: 107.7212806 | X27: 1608.081453 | Y27: -1513.50975 | Z27: 1138.946657 | AA27: -926.4380029 | AD27: 810 | AE27: 109.0447723 | AF27: 107.1513987 | AG27: 111.6405591 | AH27: 111.8431956
A28: 20 | C28: 20.20036697 | D28: 825.4634436 | E28: 795.7156491 | F28: 740.7842516 | G28: 773.2059109 | H28: 0.1022809502 | I28: 0.1022809502 | J28: 0.1022809502 | K28: 0.4730768347 | L28: 0.502865792 | M28: 10219.74286 | N28: 10212.70937 | O28: 10285.16938 | P28: 6766 | Q28: 6762.890091 | R28: 6822.609158 | S28: 111.9555263 | T28: 111.9453244 | U28: 111.956063 | V28: 111.9608045 | W28: 107.7212806 | X28: 1609.18935 | Y28: -1514.326562 | Z28: 1199.633526 | AA28: -984.0817932 | AD28: 820 | AE28: 109.2685226 | AF28: 107.0570041 | AG28: 111.8647369 | AH28: 111.7446677
A29: 21 | C29: 21.21039009 | D29: 825.4858925 | E29: 795.6468768 | F29: 740.8707822 | G29: 773.2016038 | H29: 0.10227465 | I29: 0.10227465 | J29: 0.10227465 | K29: 0.4730116684 | L29: 0.5028590253 | M29: 10219.74286 | N29: 10212.64858 | O29: 10284.79111 | P29: 6766 | Q29: 6762.952049 | R29: 6822.744928 | S29: 111.9617796 | T29: 111.9523313 | U29: 111.9622877 | V29: 111.96456 | W29: 107.7212806 | X29: 1610.049514 | Y29: -1514.934683 | Z29: 1252.588964 | AA29: -1036.129811 | AD29: 830 | AE29: 109.493193 | AF29: 106.9627757 | AG29: 112.0898169 | AH29: 111.6463133
A30: 22 | C30: 22.22041321 | D30: 825.5058007 | E30: 795.5837288 | F30: 740.9544676 | G30: 773.1988878 | H30: 0.1022686049 | I30: 0.1022686049 | J30: 0.1022686049 | K30: 0.4729535489 | L30: 0.5028517178 | M30: 10219.74286 | N30: 10212.58371 | O30: 10284.46505 | P30: 6766 | Q30: 6763.004777 | R30: 6822.882964 | S30: 111.9671784 | T30: 111.9584497 | U30: 111.967639 | V30: 111.9681346 | W30: 107.7212806 | X30: 1610.773769 | Y30: -1515.433298 | Z30: 1298.793293 | AA30: -1083.11744 | AD30: 840 | AE30: 109.7187892 | AF30: 106.868713 | AG30: 112.3158044 | AH30: 111.548132
A31: 23 | C31: 23.23043633 | D31: 825.5236938 | E31: 795.5255371 | F31: 741.0349518 | G31: 773.1974436 | H31: 0.1022628543 | I31: 0.1022628543 | J31: 0.1022628543 | K31: 0.472900954 | L31: 0.5028443975 | M31: 10219.74286 | N31: 10212.51645 | O31: 10284.18153 | P31: 6766 | Q31: 6763.04951 | R31: 6823.021284 | S31: 111.9719581 | T31: 111.9639049 | U31: 111.9723635 | V31: 111.9716406 | W31: 107.7212806 | X31: 1611.428466 | Y31: -1515.880786 | Z31: 1339.110172 | AA31: -1125.53508 | AD31: 850 | AE31: 109.9453169 | AF31: 106.7748156 | AG31: 112.542705 | AH31: 111.4501231
A32: 24 | C32: 24.24045944 | D32: 825.5399552 | E32: 795.4717706 | F32: 741.1119763 | G32: 773.1969913 | H32: 0.1022574198 | I32: 0.1022574198 | J32: 0.1022574198 | K32: 0.4728528069 | L32: 0.5028373696 | M32: 10219.74286 | N32: 10212.44834 | O32: 10283.93267 | P32: 6766 | Q32: 6763.087516 | R32: 6823.158102 | S32: 111.9762786 | T32: 111.9688523 | U32: 111.9766282 | V32: 111.9751219 | W32: 107.7212806 | X32: 1612.049902 | Y32: -1516.30862 | Z32: 1374.297035 | AA32: -1163.829204 | AD32: 860 | AE32: 110.1727819 | AF32: 106.681083 | AG32: 112.7705243 | AH32: 111.3522863
A33: 25 | C33: 25.25048256 | D33: 825.5548641 | E33: 795.4219977 | F33: 741.1853718 | G33: 773.1972923 | H33: 0.1022523098 | I33: 0.1022523098 | J33: 0.1022523098 | K33: 0.4728083505 | L33: 0.5028307949 | M33: 10219.74286 | N33: 10212.38071 | O33: 10283.71212 | P33: 6766 | Q33: 6763.119983 | R33: 6823.291907 | S33: 111.9802466 | T33: 111.9733978 | U33: 111.9805439 | V33: 111.978582 | W33: 107.7212806 | X33: 1612.655348 | Y33: -1516.731301 | Z33: 1405.015893 | AA33: -1198.404499 | AD33: 870 | AE33: 110.4011901 | AF33: 106.5875149 | AG33: 112.9992677 | AH33: 111.2546211
A34: 26 | C34: 26.26050568 | D34: 825.5686238 | E34: 795.3758597 | F34: 741.2550469 | G34: 773.1981483 | H34: 0.1022475231 | I34: 0.1022475231 | J34: 0.1022475231 | K34: 0.4727670535 | L34: 0.5028247428 | M34: 10219.74286 | N34: 10212.31462 | O34: 10283.51482 | P34: 6766 | Q34: 6763.147964 | R34: 6823.421497 | S34: 111.9839316 | T34: 111.9776121 | U34: 111.9841821 | V34: 111.9820033 | W34: 107.7212806 | X34: 1613.250694 | Y34: -1517.153233 | Z34: 1431.843933 | AA34: -1229.62665 | AD34: 880 | AE34: 110.6305474 | AF34: 106.4941107 | AG34: 113.228941 | AH34: 111.1571271
A35: 27 | C35: 27.27052879 | D35: 825.5813833 | E35: 795.3330513 | F35: 741.3209753 | G35: 773.199398 | H35: 0.1022430515 | I35: 0.1022430515 | J35: 0.1022430515 | K35: 0.4727285405 | L35: 0.5028192273 | M35: 10219.74286 | N35: 10212.25085 | O35: 10283.33677 | P35: 6766 | Q35: 6763.172352 | R35: 6823.54597 | S35: 111.987378 | T35: 111.9815426 | U35: 111.987588 | V35: 111.9853587 | W35: 107.7212806 | X35: 1613.835562 | Y35: -1517.573314 | Z35: 1455.283537 | AA35: -1257.825415 | AD35: 890 | AE35: 110.8608596 | AF35: 106.4008702 | AG35: 113.4595499 | AH35: 111.0598039
A36: 28 | C36: 28.28055191 | D36: 825.5932539 | E36: 795.2933075 | F36: 741.3831839 | G36: 773.2009128 | H36: 0.1022388826 | I36: 0.1022388826 | J36: 0.1022388826 | K36: 0.4726925412 | L36: 0.5028142301 | M36: 10219.74286 | N36: 10212.18995 | O36: 10283.17482 | P36: 6766 | Q36: 6763.193879 | R36: 6823.6647 | S36: 111.9906139 | T36: 111.9852208 | U36: 111.9907898 | V36: 111.9886204 | W36: 107.7212806 | X36: 1614.406606 | Y36: -1517.987888 | Z36: 1475.77151 | AA36: -1283.297784 | AD36: 900 | AE36: 111.0921327 | AF36: 106.3077927 | AG36: 113.6911 | AH36: 110.9626509
A37: 29 | C37: 29.29057503 | D37: 825.60432 | E37: 795.2563941 | F37: 741.4417417 | G37: 773.2025922 | H37: 0.1022350014 | I37: 0.1022350014 | J37: 0.1022350014 | K37: 0.4726588546 | L37: 0.5028097161 | M37: 10219.74286 | N37: 10212.13228 | O37: 10283.02652 | P37: 6766 | Q37: 6763.213125 | R37: 6823.777296 | S37: 111.993657 | T37: 111.9886681 | U37: 111.9938049 | V37: 111.9917632 | W37: 107.7212806 | X37: 1614.959531 | Y37: -1518.392543 | Z37: 1493.687433 | AA37: -1306.311054
A38: 30 | C38: 30.00059128 | D38: 825.6115531 | E38: 795.2323594 | F38: 741.4802365 | G38: 773.2038113 | H38: 0.1022324716 | I38: 0.1022324716 | J38: 0.1022324716 | K38: 0.4726367805 | L38: 0.5028068488 | M38: 10219.74286 | N38: 10212.09431 | O38: 10282.93072 | P38: 6766 | Q38: 6763.22537 | R38: 6823.851625 | S38: 111.9956595 | T38: 111.9909303 | U38: 111.995791 | V38: 111.993861 | W38: 107.7212806 | X38: 1615.329933 | Y38: -1518.664965 | Z38: 1504.770877 | AA38: -1320.945752

Sheet GPE
G3: General Equilibrium Prices, $/physical unit
K5: Experimenters are invited to change
K6: any data set in red type that
K7: appears within the marquee.
C8: -0.2886111448 | E8: =E24/E$18 -> 0 | F8: 0 | G8: 0 | H8: 0
C9: r | D9: R | E9: 0 | F9: 1 | G9: 2 | H9: L
C10: =-E24 -> 0 | D10: 0 | E10: =E26/E$18 -> 104588.8261 | F10: =-F8-SUM(F11:F13) -> -100 | G10: =-G8-SUM(G11:G13) -> -750 | H10: =-H8-SUM(H11:H13) -> -8766
C11: =F26-E27 -> -8035.153798 | D11: 1 | E11: =E27/E$18 -> -40175.76899 | F11: 50 | G11: 150 | H11: 1000 | N11: =L18*F11+F10 -> -45 | O11: =L18*G11 -> 165 | Q11: =-L18*H11*H18 -> -22000
C12: =G26-E28 -> -7344.632768 | D12: 2 | E12: =E28/E$18 -> -36723.16384 | F12: 30 | G12: 250 | H12: 1000 | N12: =L18*F12 -> 33 | O12: =L18*G12+G10 -> -475 | Q12: =-L18*H12*H18 -> -22000
C13: =H26-E29 -> 15379.78657 | D13: L | E13: =E29/E$18 -> -27689.89328 | F13: 20 | G13: 350 | H13: 6766 | N13: =F13+L15*(F11+F12) -> 12 | O13: =G13+L15*(G11+G12) -> 310 | Q13: =H18*(-H10-H13-L15*(H11+H12)) -> 44000
L14: i
L15: =-C18 -> -0.1 | N15: =N11*N11+N12*N12+N13*N13 -> 3258 | O15: =N11*O11+N12*O12+N13*O13 -> -19380 | Q15: =N11*Q11+N12*Q12+N13*Q13 -> 792000
N16: =O15 -> -19380 | O16: =O11*O11+O12*O12+O13*O13 -> 348950 | Q16: =O11*Q11+O12*Q12+O13*Q13 -> 20460000
C17: - i | E17: 0 | F17: 1 | G17: 2 | H17: L | L17: 1 - i
C18: 0.1 | D18: P | E18: 2 | F18: =N18/Q18 -> 883.8669178 | G18: =O18/Q18 -> 107.7212806 | H18: 20 | L18: =1-L15 -> 1.1 | N18: =Q15*O16-Q16*O15 -> 672883200000 | O18: =N15*Q16-N16*Q15 -> 8.200764e+10 | Q18: =N15*O16-N16*O15 -> 761294700
C19: Interest Rate | E19: Price of | H19: Wage
E20: Value, $/G | H20: $/hour
E24: =-SUM(F24:H24) -> 0 | F24: =F$18*F8 -> 0 | G24: =G$18*G8 -> 0 | H24: =H$18*H8 -> 0
D25: PR | E25: 0 | F25: 1 | G25: 2 | H25: L
D26: 0 | E26: =-SUM(F26:H26) -> 209177.6522 | F26: =-F24-SUM(F27:F29) -> -88386.69178 | G26: =-G24-SUM(G27:G29) -> -80790.96045 | H26: =-H24-SUM(H27:H29) -> -40000
B27: % return > | C27: =C11/E27 -> 0.1 | D27: 1 | E27: =-SUM(F27:H27) -> -80351.53798 | F27: =F$18*F11 -> 44193.34589 | G27: 16158.19209 | H27: 20000
B28: on asset | C28: =C12/E28 -> 0.1 | D28: 2 | E28: =-SUM(F28:H28) -> -73446.32768 | F28: 26516.00753 | G28: 26930.32015 | H28: 20000
B29: turnover | D29: L | E29: =-SUM(F29:H29) -> -55379.78657 | F29: =F$18*F13 -> 17677.33836 | G29: =G$18*G13 -> 37702.44821 | H29: 0

Sheet Utility
G3: Sectors' Production and Utility Tradeoffs, physical units/year
L5: Sector 1:
N7: p | O7: pq
L8: x > | M8: =-F12 -> 100 | N8: =F19 -> 883.8669178 | O8: =M8*N8 -> 88386.69178 | P8: =O8-O9-O10-O11 -> 8035.153798
L9: Q1 > | M9: =F13 -> 50 | N9: =F19 -> 883.8669178 | O9: =M9*N9 -> 44193.34589 | P9: =(O8)*(-O9)+(O8-O9)*(-O10-O11)+(-O10)*(-O11) -> -5180891290 | Q9: =P9/P8/3 -> -214926.0371 | R9: a
F10: =GPE!F8 -> 0 | G10: =GPE!G8 -> 0 | H10: =GPE!H8 -> 0 | L10: Q2 > | M10: =G13 -> 150 | N10: =G19 -> 107.7212806 | O10: =M10*N10 -> 16158.19209 | P10: =(O8-O9)*(-O10)*(-O11)+(-O10-O11)*(O8)*(-O9) -> 1.555193372e+14 | Q10: =P10/P8/3 -> 6451622506 | R10: b
D11: Q | E11: 0 | F11: 1 | G11: 2 | H11: L | L11: QL > | M11: =H13 -> 1000 | N11: =H19 -> 20 | O11: =M11*N11 -> 20000 | P11: =(O8)*(-O9)*(-O10)*(-O11) -> -1.262311459e+18 | Q11: =P11/P8/2 -> -7.854930292e+13 | R11: c
D12: 0 | E12: =GPE!E10 -> 104588.8261 | F12: =GPE!F10 -> -100 | G12: =GPE!G10 -> -750 | H12: =GPE!H10 -> -8766 | N12: ^ P
D13: 1 | F13: =GPE!F11 -> 50 | G13: =GPE!G11 -> 150 | H13: =GPE!H11 -> 1000 | O13: pu | P13: z
D14: 2 | F14: =GPE!F12 -> 30 | G14: =GPE!G12 -> 250 | H14: =GPE!H12 -> 1000 | L14: Z < | M14: =O14/N8 -> 794.2843664 | O14: =P$14+O8 -> 702041.6748 | P14: =-Q9+Q16+Q17 -> 613654.983 | Q14: =-Q9*Q9+Q10 -> -3.974157891e+10 | R14: B | S14: =Q14^3+Q15^2 -> 6.560854017e+28
D15: L | F15: =GPE!F13 -> 20 | G15: =GPE!G13 -> 350 | H15: =GPE!H13 -> 6766 | L15: U1 < | M15: =O15/N9 -> 644.2843664 | O15: =P$14-O9 -> 569461.6371 | Q15: =Q9^3-3*Q9*Q10/2+Q11 -> -7926738537434964 | R15: C | S15: =SQRT(ABS(S14)) -> 2.561416408e+14
L16: U2 < | M16: =O16/N10 -> 5546.692237 | O16: =P$14-O10 -> 597496.7909 | Q16: =IF(S16>0,S16^(1/3),-((-S16)^(1/3))) -> 201512.5339 | R16: S1 | S16: =(-Q15+S15) -> 8182880178270446
L17: UL < | M17: =O17/N11 -> 29682.74915 | O17: =P$14-O11 -> 593654.983 | Q17: =IF(S17>0,S17^(1/3),-((-S17)^(1/3))) -> 197216.4121 | R17: S2 | S17: =(-Q15-S15) -> 7670596896599482
E18: 0 | F18: 1 | G18: 2 | H18: L
D19: P | E19: =GPE!E18 -> 2 | F19: =GPE!F18 -> 883.8669178 | G19: =GPE!G18 -> 107.7212806 | H19: =GPE!H18 -> 20
L22: Sector 2:
N23: p | O23: pq
L24: x > | M24: =-G12 -> 750 | N24: =G19 -> 107.7212806 | O24: =M24*N24 -> 80790.96045 | P24: =O24-O25-O26-O27 -> 7344.632768
L25: Q1 > | M25: =F14 -> 30 | N25: =F19 -> 883.8669178 | O25: =M25*N25 -> 26516.00753 | P25: =(O24)*(-O25)+(O24-O25)*(-O26-O27)+(-O26)*(-O27) -> -4150788230 | Q25: =P25/P24/3 -> -188381.9273 | R25: a
L26: Q2 > | M26: =G14 -> 250 | N26: =G19 -> 107.7212806 | O26: =M26*N26 -> 26930.32015 | P26: =(O24-O25)*(-O26)*(-O27)+(-O26-O27)*(O24)*(-O25) -> 1.297694899e+14 | Q26: =P26/P24/3 -> 5889538388 | R26: b
C27: z | D27: U | E27: 0 | F27: 1 | G27: 2 | H27: L | L27: QL > | M27: =H14 -> 1000 | N27: =H19 -> 20 | O27: =M27*N27 -> 20000 | P27: =(O24)*(-O25)*(-O26)*(-O27) -> -1.153831568e+18 | Q27: =P27/P24/2 -> -7.854930292e+13 | R27: c
C28: 0 | D28: 0 | E28: =-E12+((O8-O14)+(O24-O30)-(O41-O45))/E19 -> -643139.1648 | F28: =M14 -> 794.2843664 | G28: =M30 -> 5693.503722 | H28: =-H12 -> 8766 | N28: ^ P
C29: =P14 -> 613654.983 | D29: 1 | F29: =M15 -> 644.2843664 | G29: =M16 -> 5546.692237 | H29: =M17 -> 29682.74915 | O29: pu | P29: z
C30: =P30 -> 532520.5516 | D30: 2 | F30: =M31 -> 572.4895161 | G30: =M32 -> 4693.503722 | H30: =M33 -> 25626.02758 | L30: Z < | M30: =O30/N24 -> 5693.503722 | O30: =$P$30+O24 -> 613311.5121 | P30: =-Q25+Q32+Q33 -> 532520.5516 | Q30: =-Q25*Q25+Q26 -> -2.959821216e+10 | R30: B | S30: =Q30^3+Q31^2 -> 7.604104008e+28
C31: =P45 -> 69074.85729 | D31: L | F31: =M46 -> 58.15074408 | G31: =M47 -> 291.2368745 | H31: =M45 -> -10219.74286 | L31: U1 < | M31: =O31/N25 -> 572.4895161 | O31: =$P$30-O25 -> 506004.5441 | Q31: =Q25^3-3*Q25*Q26/2+Q27 -> -5099576259480375 | R31: C | S31: =SQRT(ABS(S30)) -> 2.75755399e+14
L32: U2 < | M32: =O32/N26 -> 4693.503722 | O32: =$P$30-O26 -> 505590.2315 | Q32: =IF(S32>0,S32^(1/3),-((-S32)^(1/3))) -> 175173.5058 | R32: S1 | S32: =(-Q31+S31) -> 5375331658481722
L33: UL < | M33: =O33/N27 -> 25626.02758 | O33: =$P$30-O27 -> 512520.5516 | Q33: =IF(S33>0,S33^(1/3),-((-S33)^(1/3))) -> 168965.1184 | R33: S2 | S33: =(-Q31-S31) -> 4823820860479028
L38: Sector L:
M40: Leisure | N40: p | O40: pq
L41: x > | M41: =-H15 -> -6766 | N41: =-H19 -> -20 | O41: =M41*N41 -> 135320 | Q41: =O41-O42-O43 -> 79940.21343 | R41: a
L42: Q1 > | M42: =F15 -> 20 | N42: =F19 -> 883.8669178 | O42: =M42*N42 -> 17677.33836 | Q42: =-O41*O42-O41*O43+O42*O43 -> -6827513784 | R42: b
L43: Q2 > | M43: =G15 -> 350 | N43: =G19 -> 107.7212806 | O43: =M43*N43 -> 37702.44821 | Q43: =O41*O42*O43 -> 9.018792933e+13 | R43: c
N44: ^ P | O44: pu | P44: z
L45: Z < | M45: =O45/N41 -> -10219.74286 | O45: =P$45+O41 -> 204394.8573 | P45: =(-Q42+SQRT(Q42^2-4*Q41*Q43))/(2*Q41) -> 69074.85729
L46: U1 < | M46: =O46/N42 -> 58.15074408 | O46: =P$45-O42 -> 51397.51893
L47: U2 < | M47: =O47/N43 -> 291.2368745 | O47: =P$45-O43 -> 31372.40908

Sheet IState
G4: Commodities' Turnover Fractions, dimensionless/year
C9: =(1-C13)^-E9 -> 0.5131581182 | E9: 7 | G9: < Investment Term
C10: NPV
E11: n =
C12: i | E12: (1-1/NPV)/T | G12: V0
C13: =GPE!L15 -> -0.1 | E13: =(1-1/C9)/E9 -> -0.1355310143 | G13: 1 | H13: 0.1 | I13: =1/3 -> 0.3333333333 | J13: =1 -> 1 | K13: < V
G14: 0 | H14: 1 | I14: 2 | J14: L
G21: =GPE!E8 -> 0 | H21: =GPE!F8 -> 0 | I21: =GPE!G8 -> 0 | J21: =GPE!H8 -> 0
C22: e - | E22: e + | F22: E | G22: 0 | H22: 1 | I22: 2 | J22: L
B23: 0 | F23: 0 | G23: =GPE!E10 -> 104588.8261 | H23: =GPE!F10 -> -100 | I23: =GPE!G10 -> -750 | J23: =GPE!H10 -> -8766
B24: 1 | C24: =GPE!C11 -> -8035.153798 | F24: 1 | G24: =GPE!E11 -> -40175.76899 | H24: =GPE!F11 -> 50 | I24: =GPE!G11 -> 150 | J24: =GPE!H11 -> 1000
B25: 2 | C25: =GPE!C12 -> -7344.632768 | F25: 2 | G25: =GPE!E12 -> -36723.16384 | H25: =GPE!F12 -> 30 | I25: =GPE!G12 -> 250 | J25: =GPE!H12 -> 1000
B26: L | C26: =GPE!A13 -> 0 | E26: =GPE!C13 -> 15379.78657 | F26: L | G26: =GPE!E13 -> -27689.89328 | H26: =GPE!F13 -> 20 | I26: =GPE!G13 -> 350 | J26: =GPE!H13 -> 6766
C31: 0 | E31: 0 | G31: =G21/3 -> 0 | H31: =H21/H$13/3 -> 0 | I31: =I21/I$13/3 -> 0 | J31: =J21/J$13/3 -> 0
F32: A | G32: 0 | H32: 1 | I32: 2 | J32: L
B33: 0 | C33: 0 | E33: 0 | F33: 0 | G33: =G23/3 -> 34862.94204 | H33: =H23/H$13/3 -> -333.3333333 | I33: -750 | J33: -2922
B34: 1 | C34: =C24/C13 -> 80351.53798 | F34: 1 | G34: =G24/3 -> -13391.923 | H34: 166.6666667 | I34: 150 | J34: 333.3333333
B35: 2 | C35: =C25/C13 -> 73446.32768 | F35: 2 | G35: =G25/3 -> -12241.05461 | H35: 100 | I35: 250 | J35: 333.3333333
B36: L | E36: =E26/E13/3 -> -37825.99539 | F36: L | G36: =G26/3 -> -9229.964428 | H36: 66.66666667 | I36: 350 | J36: 2255.333333
E39: 0 | G39: =G31 -> 0 | H39: =H31 -> 0 | I39: =I31 -> 0 | J39: =J31 -> 0
F40: B | G40: 0 | H40: 1 | I40: 2 | J40: L
E41: 0 | F41: 0 | G41: =G33 -> 34862.94204 | H41: =H33 -> -333.3333333 | I41: -750 | J41: -2922
F42: 1 | G42: =G34 -> -13391.923 | H42: 166.6666667 | I42: 150 | J42: 333.3333333
C43: System State | F43: 2 | G43: =G35 -> -12241.05461 | H43: 100 | I43: 250 | J43: 333.3333333
C44: @ time = 0 > | E44: =E36 -> -37825.99539 | F44: L | G44: =G36 -> -9229.964428 | H44: 66.66666667 | I44: 350 | J44: 2255.333333
E47: 0 | G47: =G39 -> 0 | H47: =H39 -> 0 | I47: =I39 -> 0 | J47: =J39 -> 0
F48: C | G48: 0 | H48: 1 | I48: 2 | J48: L
E49: 0 | F49: 0 | G49: =G41 -> 34862.94204 | H49: =H41 -> -333.3333333 | I49: -750 | J49: -2922
F50: 1 | G50: =G42 -> -13391.923 | H50: 166.6666667 | I50: 150 | J50: 333.3333333
F51: 2 | G51: =G43 -> -12241.05461 | H51: 100 | I51: 250 | J51: 333.3333333
E52: =E44 -> -37825.99539 | F52: L | G52: =G44 -> -9229.964428 | H52: 66.66666667 | I52: 350 | J52: 2255.333333
J55: =Utility!H31/J13 -> -10219.74286
C58: k | E58: A
B59: 2 | C59: 0 | D59: 2 | E59: 0 | F59: 2
B60: 1 | C60: 0 | D60: 1 | E60: 0 | F60: 1
B61: 0 | C61: 0 | D61: 0 | E61: 0 | F61: 0
E63: B
C64: International | D64: 2 | E64: 0 | F64: 2
C65: Financial State | D65: 1 | E65: 0 | F65: 1
C66: @ time = 0 > | D66: 0 | E66: 0 | F66: 0
E68: C
D69: 2 | E69: 0 | F69: 2
D70: 1 | E70: 0 | F70: 1
D71: 0 | E71: 0 | F71: 0

Sheet Module1 (hidden)

Sheet Module2 (hidden)
